{"text_format":"1","workbook":"xlsx","n_sheets":6,"sheets":["Intro","Questions - Evénements","Questions - Dates","Recherche","Data","Images"],"not_rendered":{"charts":0,"images":228,"macros":1,"external_links":0,"defined_names":7,"comments":0,"pivot_tables":0},"unopened":[],"bounds":{"document_bytes":16777216,"sheet_cells":100000,"rows_first":2000,"rows_last":500,"rows_between":2000,"halvings":0,"cell_chars":16384,"cell_head_chars":4096},"cells_cut":0,"cells_raw":0,"read":"whole","date_system":"1900"}

{"sheet":"Intro","index":0,"n_rows":50,"n_cols":22,"rows_kept":50,"cut":false,"hidden":false,"merged":[[1,0,1,13],[3,0,3,13]]}
[]
["Des guerres, des inventions, des constructions, des hommes ont marqué l'histoire de l'humanité.",null,null,null,null,null,null,null,null,null,null,null,null,null,null,"Ce quiz utilise les macros Excel. Si vous avez le message ci-dessus, activez le contenu !"]
[]
["Ce quiz de dates pour situer deux cents événements importants.",null,null,null,null,null,null,null,null,null,null,null,null,null,null,"Si vous avez le messsage ci-dessous, cliquez sur le bouton \"Débloquer les macros\" pour voir les instructions."]
[]
[null,null,null,null,null,null,null,null,null,null,null,null,0,null,null,null,null,null,null,null,null,"La feuille \"Recherche\"  permet de trouver"]
[null,null,null,null,null,null,null,null,null,null,null,null,0,null,null,null,null,null,null,null,null,"un événement du quiz à partir d'une date."]
[]
[null,null,null,null,null,null,null,null,null,null,null,null,null,null,null,"          Domaines des questions du quiz:"]
[]
[null,null,null,null,null,null,null,null,null,null,null,null,null,null,null,null,"La Préhistoire",null,{"$f":"Data!K3","v":5},"questions"]
[]
[]
[]
[null,null,null,null,null,null,null,null,null,null,null,null,null,null,null,null,"L'Antiquité",null,{"$f":"Data!L3","v":26},"questions"]
[]
[]
[]
[null,null,null,null,null,null,null,null,null,null,null,null,null,null,null,null,"L'histoire de France",null,{"$f":"Data!M3","v":32},"questions"]
[]
[]
[]
[null,null,null,null,null,null,null,null,null,null,null,null,null,null,null,null,"L'histoire suisse",null,{"$f":"Data!N3","v":30},"questions"]
[]
[]
[]
[null,null,null,null,null,null,null,null,null,null,null,null,null,null,null,null,"Evénements mondiaux",null,{"$f":"Data!O3","v":58},"questions"]
[]
[]
[]
[null,null,null,null,null,null,null,null,null,null,null,null,null,null,null,null,"Inventions et culture",null,{"$f":"Data!P3","v":49},"questions"]
[]
[]
[]
[]
[]
[]
[null,"© Yvan Péguiron 2026 - www.infodidac.ch"]
[]
[]
[]
[]
[]
[]
[]
[]
[]
[]
[]
["           Retour"]

{"sheet":"Questions - Evénements","index":1,"n_rows":32,"n_cols":19,"rows_kept":32,"cut":false,"hidden":false,"merged":[[0,8,1,8],[4,1,8,8],[11,1,11,4],[2,7,2,8],[0,7,1,7],[27,1,28,2],[27,3,28,3],[27,4,28,4],[24,1,24,2],[2,9,3,9],[20,5,20,6],[10,5,10,6],[12,5,12,6],[14,5,14,6],[16,5,16,6],[18,5,18,6],[13,8,15,8],[6,9,8,9],[10,9,19,9]]}
[null,null,null,"Question no :",{"$f":"IF(O2>P4,P4&\" / \"&P4,O2&\" / \"&P4)","v":"0 / 200"},"Nb. de réponses :",{"$f":"O3","v":0},"% de réponses justes",{"$f":"IF(O3=0,\"\",M3/O3)","v":""}]
[null,null,null,null,null,"Nb. de justes :",{"$f":"M3","v":0},null,null,null,null,"no tirage",0,"Nb quest",0,{"$f":"Data!C1","v":200},null,"fin = 1","Onglet"]
[null,"            Situe dans le temps et donne  une date pour cet événement de l'histoire ",null,null,null,null,null,{"$f":"VLOOKUP(M2,Data1,3)","v":""},null,null,null,"nb juste",0,"nb réponses",0,"Nb Data",null,{"$f":"IF(D28+1=O2,1,0)","v":0},"Q"]
[null,null,null,null,null,null,null,null,null,null,null,"no propositions",null,{"$f":"Data!Q18","v":200},"nb Select",{"$f":"Data!R18","v":200},"Note sir 10:",{"$f":"IF(O3=0,1,ROUND((M3/O3)*20,0)/2)","v":1},{"$f":"INT(R4)","v":1}]
[null,{"$f":"VLOOKUP(M2,Data1,6)","v":"Pour démarrer : Bouton 'Nouvelle partie', choisir les options ci-dessous,  puis bouton  'Question'."},null,null,null,null,null,null,null,null,null,1,0,{"$f":"VLOOKUP(M5,Data1,4)","v":""},null,{"$f":"\"Partie terminée… Ta culture générale laisse à désirer !!!\"","v":"Partie terminée… Ta culture générale laisse à désirer !!!"}]
[null,null,null,null,null,null,null,null,null,{"$f":"IF(O2-1=P4,\"Note sur 10\",\"\")","v":""},null,2,0,"",null,{"$f":"\"Partie terminée… Tu peux faire mieux !\"","v":"Partie terminée… Tu peux faire mieux !"}]
[null,null,null,null,null,null,null,null,null,{"$f":"IF(O2-1=P4,R4,\"\")","v":""},null,3,0,"",null,{"$f":"\"Partie terminée… C'est bien !\"","v":"Partie terminée… C'est bien !"}]
[null,null,null,null,null,null,null,null,null,null,null,4,0,"",null,{"$f":"\"Partie terminée… Félicitations !\"","v":"Partie terminée… Félicitations !"}]
[null,null,null,null,null,null,null,null,null,null,null,5,0,"",null,{"$f":"\"Partie terminée… Magnifique résultat !\"","v":"Partie terminée… Magnifique résultat !"},null,"Valeur :",{"$f":"VLOOKUP(S4,R12:T22,2)","v":1}]
[null,null,null,null,null,null,null,null,null,null,null,6,0,"",null,{"$f":"\"Partie terminée à la perfection !\"","v":"Partie terminée à la perfection !"}]
[null,null,null,null,null,{"$f":"VLOOKUP(1,$L$5:$N$10,3)","v":""},null,{"$f":" IF($M$14=1,\"×\",\"\")","v":""},null,null,null,null,null,null,null,{"$f":"VLOOKUP(S9,L5:P11,5)","v":"Partie terminée… Ta culture générale laisse à désirer !!!"}]
[null,{"$f":"IF(O2=0, \"Clique sur Question !\",\"Clique sur une date proposée !\")","v":"Clique sur Question !"},null,null,null,null,null,null,null,null,null,"Bonne rép :",0,null,"No icone",{"$f":"IF(R3=1,7,VLOOKUP(M2,Data1,5))","v":0},null,0,1]
[null,null,null,null,null,{"$f":"VLOOKUP(2,$L$5:$N$10,3)","v":""},null,{"$f":" IF($M$14=2,\"×\",\"\")","v":""},null,null,null,null,null,null,null,null,null,1,1]
[null,null,null,null,null,null,null,null,{"$f":"IF(M14=0,\"\",IF(M14=M12,\"J\",\"û\"))","v":""},null,null,"Réponses:",0,null,null,null,null,2,1]
[null,null,null,null,null,{"$f":"VLOOKUP(3,$L$5:$N$10,3)","v":""},null,{"$f":" IF($M$14=3,\"×\",\"\")","v":""},null,null,null,null,null,null,null,null,null,3,2]
[null,null,null,null,null,null,null,null,null,null,null,"Sélection : ",null,"nb ques",null,"contròle",null,4,2]
[null,null,null,null,null,{"$f":"VLOOKUP(4,$L$5:$N$10,3)","v":""},null,{"$f":" IF($M$14=4,\"×\",\"\")","v":""},{"$f":"IF(M2=0,\"\",IF(M14=M12,\"Bravo !\",\"\"))","v":""},null,17,"Antiquité",true,{"$f":"IF(M17=FALSE,0,Data!K3+Data!L3)","v":31},null,{"$f":"IF(M17=FALSE,0,1)","v":1},null,5,3]
[null,null,null,null,null,null,null,null,null,null,18,"France",true,{"$f":"IF(M18=FALSE,0,Data!M3)","v":32},null,{"$f":"IF(M18=FALSE,0,1)","v":1},null,6,3]
[null,null,null,null,null,{"$f":"VLOOKUP(5,$L$5:$N$10,3)","v":""},null,{"$f":" IF($M$14=5,\"×\",\"\")","v":""},null,null,19,"Suisse",true,{"$f":"IF(M19=FALSE,0,Data!N3)","v":30},null,1,null,7,4]
[null,null,null,null,null,null,null,null,null,null,20,"Monde",true,{"$f":"IF(M20=FALSE,0,Data!O3)","v":58},null,1,null,8,4]
[null,null,null,null,null,{"$f":"VLOOKUP(6,$L$5:$N$10,3)","v":""},null,{"$f":" IF($M$14=6,\"×\",\"\")","v":""},null,null,21,"Inventeurs",true,{"$f":"IF(M21=FALSE,0,Data!P3)","v":49},null,1,null,9,5]
[null,null,null,null,null,null,null,null,null,null,22,"Avant 1500",false,null,{"$f":"Data!R3","v":92},0,null,10,6]
[null,{"$f":"IF(O2=0,\"Choisis les champs souhaités pour les questions et le nombre !\",\"\")","v":"Choisis les champs souhaités pour les questions et le nombre !"},null,null,null,null,null,null,null,null,23,"Après 1500",false,null,{"$f":"Data!S3","v":43},0]
[null,null,null,null,null,null,null,null,null,null,null,null,"Total",{"$f":"SUM(N17:N23)","v":200},null,{"$f":"SUM(P17:P23)","v":5}]
[]
[null,{"$f":"IF(H2=0,\"ou :\",\"\")","v":"ou :"}]
[]
[null,"Maximum de questions souhaitées :",null,200,{"$f":"\"/ \"&N4","v":"/ 200"}]
[]
[]
[]
[null,"PS: L'onglet \"Questions - Dates\" pose les questions à l'envers. D'une date, trouver l'événement."]

{"sheet":"Questions - Dates","index":2,"n_rows":28,"n_cols":19,"rows_kept":28,"cut":false,"hidden":false,"merged":[[18,5,18,6],[20,5,20,6],[24,1,24,2],[27,1,28,2],[27,3,28,3],[27,4,28,4],[16,5,16,6],[0,7,1,7],[0,8,1,8],[2,7,2,8],[2,9,3,9],[4,1,8,8],[10,5,10,6],[11,1,11,4],[12,5,12,6],[13,8,15,8],[14,5,14,6],[6,9,9,9]]}
[" ",null,null,"Question no :",{"$f":"IF(O2>P4,P4&\" / \"&P4,O2&\" / \"&P4)","v":"0 / 200"},"Nb. de réponses :",{"$f":"O3","v":0},"% de réponses justes",{"$f":"IF(O3=0,\"\",M3/O3)","v":""}]
[null,null,null,null,null,"Nb. de justes :",{"$f":"M3","v":0},null,null,null,null,"no tirage",0,"Nb quest",0,{"$f":"Data!C1","v":200},null,"fin = 1","Onglet"]
[null,"            Situe un événement de l'histoire à partir d'une date.",null,null,null,null,null,{"$f":"VLOOKUP(M2,Data1,3)","v":""},null,null,null,"nb juste",0,"nb réponses",0,"Nb Data",null,{"$f":"IF(D28+1=O2,1,0)","v":0},"D"]
[null,null,null,null,null,null,null,null,null,null,null,"no propositions",null,{"$f":"Data!Q18","v":200},"nb Select",{"$f":"Data!R18","v":200},"Note sir 10:",{"$f":"IF(O3=0,1,ROUND((M3/O3)*20,0)/2)","v":1},{"$f":"INT(R4)","v":1}]
[null,{"$f":"VLOOKUP(M2,Data1,4)","v":""},null,null,null,null,null,null,null,null,null,1,0,{"$f":"IF(M11=1,N11,VLOOKUP(M5,Data1,6))","v":"Cliquer sur Nouvelle partie"},null,{"$f":"\"Partie terminée… Ta culture générale laisse à désirer !!!\"","v":"Partie terminée… Ta culture générale laisse à désirer !!!"}]
[null,null,null,null,null,null,null,null,null,{"$f":"IF(O2-1=P4,\"Note sur 10\",\"\")","v":""},null,2,0,{"$f":"IF(M11=1,N11,VLOOKUP(M6,Data1,6))","v":"Cliquer sur Nouvelle partie"},null,{"$f":"\"Partie terminée… Tu peux faire mieux !\"","v":"Partie terminée… Tu peux faire mieux !"}]
[null,null,null,null,null,null,null,null,null,{"$f":"IF(O2-1=P4,R4,\"\")","v":""},null,3,0,{"$f":"IF(M11=1,N11,VLOOKUP(M7,Data1,6))","v":"Cliquer sur Nouvelle partie"},null,{"$f":"\"Partie terminée… C'est bien !\"","v":"Partie terminée… C'est bien !"}]
[null,null,null,null,null,null,null,null,null,null,null,4,0,{"$f":"IF(M11=1,N11,VLOOKUP(M8,Data1,6))","v":"Cliquer sur Nouvelle partie"},null,{"$f":"\"Partie terminée… Félicitations !\"","v":"Partie terminée… Félicitations !"}]
[null,null,null,null,null,null,null,null,null,null,null,5,0,{"$f":"IF(M11=1,N11,VLOOKUP(M9,Data1,6))","v":"Cliquer sur Nouvelle partie"},null,{"$f":"\"Partie terminée… Magnifique résultat !\"","v":"Partie terminée… Magnifique résultat !"},null,"Valeur :",{"$f":"VLOOKUP(S4,R12:T22,2)","v":1}]
[null,null,null,null,null,null,null,null,null,null,null,6,0,{"$f":"IF(M11=1,N11,VLOOKUP(M10,Data1,6))","v":"Cliquer sur Nouvelle partie"},null,{"$f":"\"Partie terminée à la perfection !\"","v":"Partie terminée à la perfection !"}]
[null,null,null,null,null,{"$f":"VLOOKUP(1,$L$5:$N$10,3)","v":"Cliquer sur Nouvelle partie"},null,{"$f":" IF($M$14=1,\"×\",\"\")","v":""},null,null,null,"début et fin ",{"$f":"IF(O2=0,1,IF(R3=1,1,0))","v":1},{"$f":"IF(O2=0,O11,\"Partie terminée\")","v":"Cliquer sur Nouvelle partie"},{"$f":"IF(Data!I1=\"Q\",\"Cliquer sur Nouvelle partie\",\"Nouvelle partie\")","v":"Cliquer sur Nouvelle partie"},{"$f":"VLOOKUP(S9,L5:P11,5)","v":"Partie terminée… Ta culture générale laisse à désirer !!!"}]
[null,"Clique sur une date proposée !",null,null,null,null,null,null,null,null,null,"Bonne rép :",0,null,"No icone",{"$f":"IF(R3=1,7,VLOOKUP(M2,Data1,5))","v":0},null,0,1]
[null,null,null,null,null,{"$f":"VLOOKUP(2,$L$5:$N$10,3)","v":"Cliquer sur Nouvelle partie"},null,{"$f":" IF($M$14=2,\"×\",\"\")","v":""},null,null,null,null,null,null,null,null,null,1,1]
[null,null,null,null,null,null,null,null,{"$f":"IF(M14=0,\"\",IF(M14=M12,\"J\",\"û\"))","v":""},null,null,"Réponses:",0,null,null,null,null,2,1]
[null,null,null,null,null,{"$f":"VLOOKUP(3,$L$5:$N$10,3)","v":"Cliquer sur Nouvelle partie"},null,{"$f":" IF($M$14=3,\"×\",\"\")","v":""},null,null,null,null,null,null,null,null,null,3,2]
[null,null,null,null,null,null,null,null,null,null,null,"Sélection : ",null,"nb ques",null,"contròle",null,4,2]
[null,null,null,null,null,{"$f":"VLOOKUP(4,$L$5:$N$10,3)","v":"Cliquer sur Nouvelle partie"},null,{"$f":" IF($M$14=4,\"×\",\"\")","v":""},{"$f":"IF(M2=0,\"\",IF(M14=M12,\"Bravo !\",\"\"))","v":""},null,17,"Antiquité",true,{"$f":"IF(M17=FALSE,0,Data!K3+Data!L3)","v":31},null,{"$f":"IF(M17=FALSE,0,1)","v":1},null,5,3]
[null,null,null,null,null,null,null,null,null,null,18,"France",true,{"$f":"IF(M18=FALSE,0,Data!M3)","v":32},null,{"$f":"IF(M18=FALSE,0,1)","v":1},null,6,3]
[null,null,null,null,null,{"$f":"VLOOKUP(5,$L$5:$N$10,3)","v":"Cliquer sur Nouvelle partie"},null,{"$f":" IF($M$14=5,\"×\",\"\")","v":""},null,null,19,"Suisse",true,{"$f":"IF(M19=FALSE,0,Data!N3)","v":30},null,1,null,7,4]
[null,null,null,null,null,null,null,null,null,null,20,"Monde",true,{"$f":"IF(M20=FALSE,0,Data!O3)","v":58},null,1,null,8,4]
[null,null,null,null,null,{"$f":"VLOOKUP(6,$L$5:$N$10,3)","v":"Cliquer sur Nouvelle partie"},null,{"$f":" IF($M$14=6,\"×\",\"\")","v":""},null,null,21,"Inventeurs",true,{"$f":"IF(M21=FALSE,0,Data!P3)","v":49},null,1,null,9,5]
[null,null,null,null,null,null,null,null,null,null,22,"Avant 1500",false,null,{"$f":"Data!R3","v":92},0,null,10,6]
[null,{"$f":"IF(O2=0,\"Choisis les champs souhaités pour les questions et le nombre !\",\"\")","v":"Choisis les champs souhaités pour les questions et le nombre !"},null,null,null,null,null,null,null,null,23,"Après 1500",false,null,{"$f":"Data!S3","v":43},0]
[null,null,null,null,null,null,null,null,null,null,null,null,"Total",{"$f":"SUM(N17:N23)","v":200},null,{"$f":"SUM(P17:P23)","v":5}]
[]
[null,{"$f":"IF(H2=0,\"ou :\",\"\")","v":"ou :"}]
[]
[null,"Maximum de questions souhaitées :",null,200,{"$f":"\"/ \"&N4","v":"/ 200"}]

{"sheet":"Recherche","index":3,"n_rows":7,"n_cols":6,"rows_kept":7,"cut":false,"hidden":true,"merged":[]}
[]
["     Rechercher un événement du quiz en fonction de la date"]
[]
[null,null,null,null,null,100]
[]
[]
[null,null,null,{"$f":"VLOOKUP($F$4,Data1,4)","v":"1536 (mars)"},{"$f":"VLOOKUP($F$4,Data1,6)","v":"Les Bernois conquièrent le Pays de Vaud et, le 29, occupent le château de Chillon qui conserve son rôle de forteresse, d’arsenal et de prison."}]

{"sheet":"Data","index":4,"n_rows":203,"n_cols":19,"rows_kept":203,"cut":false,"hidden":true,"merged":[[17,10,17,11]]}
[null,null,{"$f":"COUNTA(B3:B252)","v":200},"nb questions",null,null,0,null,"Q",null,null,null,null,null,null,null,null,"avant 1500","après 1500"]
[0,null,{"$f":"\"\"","v":""},{"$f":"\"\"","v":""},null,{"$f":"IF('Questions - Evénements'!O2=0,\"Pour démarrer : Bouton 'Nouvelle partie', choisir les options ci-dessous,  puis bouton  'Question'.\",'Questions - Evénements'!P11)","v":"Pour démarrer : Bouton 'Nouvelle partie', choisir les options ci-dessous,  puis bouton  'Question'."},null,null,"Série ^",null,1,2,3,4,5,6,7]
[1,-400000,{"$f":"VLOOKUP(E3,$K$4:$L$9,2)","v":"de la Préhistoire"},"il y a 400 000 ans",1,"L'homme de Néandertal maîtrisait parfaitement le feu, l'utilisant pour se chauffer, s'éclairer, cuisiner et fabriquer des outils.  Il savait produire le feu par percussion (silex et pyrite).",null,null,null,"Nombre :",{"$f":"COUNTIF(ColoneE,\"=1\")","v":5},{"$f":"COUNTIF(ColoneE,\"=2\")","v":26},{"$f":"COUNTIF(ColoneE,\"=3\")","v":32},{"$f":"COUNTIF(ColoneE,\"=4\")","v":30},{"$f":"COUNTIF(ColoneE,\"=5\")","v":58},{"$f":"COUNTIF(ColoneE,\"=6\")","v":49},{"$f":"SUM(K3:P3)","v":200},{"$f":"COUNTIF($B$3:$B$137,\"<=1500\")","v":92},{"$f":"COUNTIF($B$3:$B$137,\">1500\")","v":43}]
[2,-19000,"de la Préhistoire","Vers 19000 avant J.-C.",1,"Des Magdaléniens dessinent des figures d'animaux dans leurs grottes, comme celles retrouvées en 1940 à Lascaux en Dordogne.",null,null,null,null,1,"de la Préhistoire"]
[3,-10500,"des inventions et culture","Vers 10500 avant J.-C.",6,"Au Japon, première et plus ancienne époque de fabrication de la céramique  connue dans le monde",null,null,null,null,2,"antique"]
[4,-8000,"de la Préhistoire","Vers 8000 avant J.-C.",1,"Débute le néolithique, les hommes cultivent des plantes et domestiquent des animaux ",null,null,null,null,3,"de France"]
[5,-5000,"de la Préhistoire","Vers 5000 avant J.-C.",1,"Début de la culture du maïs dans la vallée de Tehuacán (Mexique actuel).",null,null,null,null,4,"Suisse"]
[6,-3500,"des inventions et culture","Vers 3500 avant J.-C.",6,"La roue de transport  est attribuée à Sumer en Basse Mésopotamie.",null,null,null,null,5,"mondiale"]
[7,-3000,"des inventions et culture","Vers 3000 avant J.-C.",6,"Les hommes inventent l’écriture, c’est la fin de la période néolithique.",null,null,null,null,6,"des inventions et culture"]
[8,-2800,"de la Préhistoire","Vers 2800 avant J.-C.",1,"La métallurgie du bronze (alliage de cuivre et d'étain, plus dur que le cuivre seul, ce qui permet de fabriquer des outils plus résistants) parvient  en Grèce et en Crète.  800 ans  plus tard en Europe de l'Ouest et en Chine."]
[9,-2589,"antique","vers 2589-2566 av. J.-C.",2,"Construction de la pyramide de Khéops pour le complexe de Gizeh. Elle est commandée par le pharaon Khéops durant l'Ancien Empire.",null,null,null,"<=1500",{"$f":"COUNTIFS(ColoneE,\"=1\", ColoneB,\"<=1500\")","v":5},{"$f":"COUNTIFS(ColoneE,\"=2\", ColoneB,\"<=1500\")","v":26},{"$f":"COUNTIFS(ColoneE,\"=3\", ColoneB,\"<=1500\")","v":9},{"$f":"COUNTIFS(ColoneE,\"=4\", ColoneB,\"<=1500\")","v":7},{"$f":"COUNTIFS(ColoneE,\"=5\", ColoneB,\"<=1500\")","v":24},{"$f":"COUNTIFS(ColoneE,\"=6\", ColoneB,\"<=1500\")","v":21},{"$f":"SUM(K11:P11)","v":92}]
[10,-2000,"antique","Vers 2000 avant J.-C.",2,"Première utilisation du zéro par les Babyloniens. Les Arabes l'intégreront à leur système de numération au cours du Xe siècle.",null,null,null,">1500",{"$f":"COUNTIFS(ColoneE,\"=1\",ColoneB,\">1500\")","v":0},{"$f":"COUNTIFS(ColoneE,\"=2\",ColoneB,\">1500\")","v":0},{"$f":"COUNTIFS(ColoneE,\"=3\",ColoneB,\">1500\")","v":23},{"$f":"COUNTIFS(ColoneE,\"=4\",ColoneB,\">1500\")","v":23},{"$f":"COUNTIFS(ColoneE,\"=5\",ColoneB,\">1500\")","v":34},{"$f":"COUNTIFS(ColoneE,\"=6\",ColoneB,\">1500\")","v":28},{"$f":"SUM(K12:P12)","v":108}]
[11,-1590,"antique","Vers 1590 avant J.-C.",2,"Les pharaons momifiés sont ensevelis dans la Vallée des Rois située sur la rive gauche du Nil face à Thèbes."]
[12,-1560,"antique","1560 avant J.-C.",2,"Naissance de Moïse. La tradition juive place cette année en utilisant un schéma de 40 ans pour sa jeunesse, son séjour dans le désert, et l'errance dans le désert.",null,null,null,"choix",{"$f":"IF(Q$28=TRUE,Data!K11,0)","v":5},{"$f":"IF($Q28=TRUE,Data!L11,0)","v":26},{"$f":"IF($Q29=TRUE,Data!M11,0)","v":9},{"$f":"IF($Q30=TRUE,Data!N11,0)","v":7},{"$f":"IF($Q31=TRUE,Data!O11,0)","v":24},{"$f":"IF($Q32=TRUE,Data!P11,0)","v":21},{"$f":"IF($Q33=TRUE,Data!Q11,0)","v":0}]
[13,-1300,"antique","Vers 1300 avant J.-C.",2,"Arrivée du fer en Grèce. Le monde grec entre dans le premier âge du fer.",null,null,null,null,{"$f":"IF($Q$28=TRUE,Data!K12,0)","v":0},{"$f":"IF($Q$29=TRUE,Data!L12,0)","v":0},{"$f":"IF($Q$29=TRUE,Data!M12,0)","v":23},{"$f":"IF($Q$30=TRUE,Data!N12,0)","v":23},{"$f":"IF($Q$31=TRUE,Data!O12,0)","v":34},{"$f":"IF($Q$32=TRUE,Data!P12,0)","v":28},{"$f":"IF($Q$34=TRUE,Data!Q12,0)","v":0}]
[14,-1200,"antique","Vers 1200 avant J.-C.",2,"Les Hébreux s’installent dans le pays de Canaan, entre le fleuve Jourdain et la mer Méditerranée, après des années d’ exode. "]
[15,-780,"des inventions et culture","Vers 780 avant J.-C.",6,"L’Odyssée est une épopée grecque attribuée à Homère.  Elle est considérée, avec l’Iliade, comme l'un des  « poèmes fondateurs » de la culture antique et comme l’un des plus grands chefs-d’œuvre de la littérature mondiale.",null,null,null,"Definitif",{"$f":"SUM(K14:K15)","v":5},{"$f":"SUM(L14:L15)","v":26},32,30,58,49,0,{"$f":"SUM(M17:Q17)+K18","v":200}]
[16,-776,"antique","776 avant J.-C.",2,"Premiers Jeux olympiques à Olympie.",null,null,null,null,{"$f":"SUM(K17:L17)","v":31},null,null,null,null,"nb selec",{"$f":"IF(R17=0,1,R17)","v":200},{"$f":"IF(Q18<=Q19,Q18,Q19)","v":200}]
[17,-753,"antique","753 avant J.-C.",2,"Fondation de Rome.",null,null,null,null,null,null,null,null,null,"maximum",{"$f":"IF(I1=\"Q\",'Questions - Evénements'!D28,'Questions - Dates'!D28)","v":200}]
[18,-650,"des inventions et culture","Vers 650 avant J.-C..",6,"Apparition des premières pièces de monnaie en Lydie (région occidentale de l'Anatolie). Le roi Crésus y établit un système monétaire avec des pièces faites d'électrum, un alliage d'or et d'argent.",null,null,null,null,null,null,true]
[19,-623,"des inventions et culture","vers 623 av. J.-C. ",6,"Naissance du Bouddha, Siddhartha Gautama. Fils du roi Shuddhodana et de la reine Maya (Népal actuel). Il choisit la voie de l'éveil après avoir découvert la souffrance humaine.",null,null,null,null,null,null,true]
[20,-586,"antique","586 avant J.-C.",2,"Le premier temple de Jérusalem (ou Temple de Saloman) est entièrement détruit par Nabuchodonosor II, roi de Babylone. C’est la fin du royaume de Juda (un royaume d’Israël).",null,null,null,null,null,null,false]
[21,-490,{"$f":"VLOOKUP(E23,$K$4:$L$9,2)","v":"antique"},"490 avant J.-C.",2,"À Marathon, 9 000 hoplites athéniens et leurs 1 000 alliés platéens infligent une cuisante défaite aux 40 000 soldats de l’Empire perse."]
[22,-356,"antique","356 avant J.-C. (juillet)",2,"Naissance  d'Alexandre le Grand. Roi de Macédoine, il devient l'un des plus grands conquérants de l'histoire en prenant possession de l'immense Empire perse et en s'avançant jusqu'aux rives de l'Indus.      ",null,null,null,null,null,null,true]
[23,-348,"antique","348 avant J.-C.",2,"Le Parthénon construit sur l'Acropole d'Athènes est consacré à la déesse Athéna Parthénos en cette année."]
[24,-300,"des inventions et culture","Vers 300 avant J.-C.",6,"Euclide écrit  un traité de mathématiques présentant de manière systématique un large ensemble de théorèmes accompagnés de leurs démonstrations. Il porte sur la géométrie et l'arithmétique.",null,null,null,"Proposition question",null,null,null,"Propositon datre",null,null,"Proposition OK"]
[25,-287,"des inventions et culture","Vers 287 avant J.-C.",6,"Archimède naît à Syracuse. Grand scientifique connu pour son principe selon lequel  « Tout corps plongé dans un fluide subit une force verticale, dirigée de bas en haut, égale  au poids du volume de fluide déplacé\"."]
[26,-280,"antique","Vers 280 avant J.-C.",2,"Construction du Phare d'Alexandrie",null,null,null,17,{"$f":"'Questions - Evénements'!M17","v":true},{"$f":"'Questions - Evénements'!N17","v":31},null,{"$f":"'Questions - Dates'!M17","v":true},{"$f":"'Questions - Dates'!N17","v":31},null,{"$f":"IF($I$1=\"Q\",K28,N28)","v":true}]
[27,-247,"antique","247 avant J.-C.",2,"Naissance à Carthage de Hannibal, considéré comme l'un des plus grands tacticiens militaires de l'Histoire. Il a fait trembler les Romains en franchissant les Alpes avec ses éléphants.",null,null,null,18,{"$f":"'Questions - Evénements'!M18","v":true},{"$f":"'Questions - Evénements'!N18","v":32},null,{"$f":"'Questions - Dates'!M18","v":true},{"$f":"'Questions - Dates'!N18","v":32},null,{"$f":"IF($I$1=\"Q\",K29,N29)","v":true}]
[28,-168,"antique","168 avant J.-C.",2,"Début de la conquête romaine.",null,null,null,19,{"$f":"'Questions - Evénements'!M19","v":true},{"$f":"'Questions - Evénements'!N19","v":30},null,{"$f":"'Questions - Dates'!M19","v":true},{"$f":"'Questions - Dates'!N19","v":30},null,true]
[29,-52,"antique","52 avant J.-C.",2,"Guerre des Gaules et victoire romaine de Jules César à Alésia contre Vercingétorix.",null,null,null,20,{"$f":"'Questions - Evénements'!M20","v":true},{"$f":"'Questions - Evénements'!N20","v":58},null,{"$f":"'Questions - Dates'!M20","v":true},{"$f":"'Questions - Dates'!N20","v":58},null,true]
[30,-51,"antique","entre 51et 30 av. J.-C. ",2,"Règne de Cléopâtre VII en Égypte. Cléopâtre a la réputation d'avoir usé de son sens de la politique et de son charme irrésistible pour asseoir son pouvoir.",null,null,null,21,{"$f":"'Questions - Evénements'!M21","v":true},{"$f":"'Questions - Evénements'!N21","v":49},null,{"$f":"'Questions - Dates'!M21","v":true},{"$f":"'Questions - Dates'!N21","v":49},null,true]
[31,-15,"antique","15 avant J.-C.",2,"Lousonna, vicus gallo-romain est érigée au bord du Léman dans l'actuel quartier de Vidy au bord du Léman.",null,null,null,22,{"$f":"'Questions - Evénements'!M22","v":false},{"$f":"'Questions - Evénements'!N22","v":0},null,{"$f":"'Questions - Dates'!M22","v":false},{"$f":"'Questions - Dates'!N22","v":0},null,false]
[32,37,"antique",37,2,"Naissance de Lucius Domitius Ahenobarbus, qui deviendra empereur romain à l'âge de 17 ans sous le nom de Néron.",null,null,null,23,{"$f":"'Questions - Evénements'!M23","v":false},{"$f":"'Questions - Evénements'!N23","v":0},null,{"$f":"'Questions - Dates'!M23","v":false},{"$f":"'Questions - Dates'!N23","v":0},null,false]
[33,64,"antique",64,2,"Incendie de Rome, début des persécutions contre les chrétiens.",null,null,null,null,null,{"$f":"SUM(L28:L34)","v":200},null,null,{"$f":"SUM(O28:O34)","v":200}]
[34,79,{"$f":"VLOOKUP(E36,$K$4:$L$9,2)","v":"antique"},79,2,"Éruption du Vésuve qui a enseveli sous les éjectas volcaniques Pompéi et Herculanum."]
[35,105,"des inventions et culture",105,6,"L’invention du papier est attribuée à Ts’ai Lun, un dignitaire de la cour impériale chinoise."]
[36,313,"antique",313,2,"Édit de Constantin (ou Édit de Milan) accorde la liberté de culte aux chrétiens et ordonne que leur soient restitués  biens et bâtiments  confisqués durant la Grande persécution."]
[37,395,"antique",395,2,"Partage de l’Empire, Empire romain d’occident et Empire romain d’Orient."]
[38,410,"antique",410,2,"Prise de Rome par les Goths."]
[39,443,"antique",443,2,"Les Burgondes, peuple germanique, sont installés par le général romain Aetius dans la région du lac Léman pour défendre l'Empire romain contre les Alamans. Ils adoptent rapidement la langue et la culture gallo-romaines. "]
[40,476,"antique",476,2,"Chute de l’Empire romain d’occident et fin de l’Antiquité. L’Empire romain d’Orient subsiste sous le nom d’Empire byzantin avec pour capitale : Constantinople."]
[41,481,"de France",481,3,"Avènement de Clovis Iᵉʳ roi des Francs saliens, puis roi de tous les Francs. Premier roi de France, il est à l'origine de la dynastie des Mérovingiens."]
[42,610,"des inventions et culture","Vers 610",6,"L'islam est né  dans la péninsule arabique. Mahomet, alors marchand à La Mecque, reçoit ses premières révélations de l'archange Gabriel. Il commence alors à prêcher le monothéisme (crois en un Dieu unique, Allah)."]
[43,624,"mondiale",624,5,"Victoire de Badr sur les Mecquois. Allah ordonne le changement de Qibla ( la prière est dirigée vers La Mecque et non plus vers Jérusalem ) et fixation du jeûne du mois de Ramadhan."]
[44,629,"mondiale","Vers 629 - 630",5,"Expulsion des Juifs de Jérusalem par Héraclius. Cette déportation donne lieu à des violences anti-juives à travers l’Empire romain d’Orient et le patriarche Cyrus d’Alexandrie"]
[45,632,"mondiale","632 (4 juin)",5,"Mort à Médine de Mahomet. Chef religieux, politique et militaire arabe issu de la tribu de Quraych. Fondateur de l'islam, il en est considéré comme le prophète majeur."]
[46,632,"de France",632,3,"A la mort de son frère, Dagobert  devient cette année-là l’unique roi des Francs et seul maître d’un royaume mérovingien qui s’étend des Pyrénées au Rhin, de la Bretagne à l’Elbe."]
[47,751,"de France",751,3,"Pépin le Bref devient roi des Francs : la dynastie carolingienne est fondée."]
[48,800,"de France","800 (25 décembre)",3,"Sacre de l’empereur Charlemagne et Aix-la-Chapelle devient capitale du royaume."]
[49,828,"mondiale",828,5,"Début de la construction à Venise de la Basilique cathédrale Saint-Marc sur l'emplacement de la chapelle privée du palais des Doges."]
[50,885,"de France","fin 885 - 886",3,"Pillage de Paris par les Vikings."]
[51,897,"mondiale","dès 897",5,"La sécheresse importante en Amérique centrale qui toucha le Mexique aurait pu contribuer à la chute des Mayas. "]
[52,962,"mondiale",962,5,"Couronnement d'Otton Ier. Le Saint-Empire romain germanique est constitué. IL s'étend de la mer du Nord aux États pontificaux, à l'Est quatre fleuves délimitant la Francie: l'Escaut, la Meuse, la Saône et le Rhône."]
[53,987,"de France","987 (3 juillet)",3,"Le dernier roi carolingien Louis V meurt sans descendance. Hugues Capet lui succède et fonde la dynastie des Capétiens. Date probable du couronnement."]
[54,1001,"mondiale","Vers 1001",5,"Découverte possible de l’Amérique par Leif Erikson, un proche parent d’Erik le Rouge venu de Norvège pour rejoindre son père au Groenland et dérouté par les vents."]
[55,1054,"mondiale",1054,5,"Schisme d’Orient entre l’église catholique d’occident et l’église orthodoxe d’Orient. "]
[56,1095,"mondiale","1095 (19 juin)",5,"Au concile de Clermont, appel à la croisade par le pape Urbain II."]
[57,1099,"mondiale",1099,5,"Siège et prise de Jérusalem par les croisés."]
[58,1129,"mondiale","1129 (13 janvier)",5,"Création de l'Ordre du Temple à l'occasion du concile de Troyes à partir d'une milice de Français chrétiens appelée la Milice des Pauvres Chevaliers du Christ et du Temple de Salomon. Les membres sont appelés les Templiers."]
[59,1173,"mondiale",1173,5,"Début de la construction de la Tour de Pise (campanile de la cathédrale Notre-Dame de l’Assomption de Pise, en Toscane."]
[60,1198,"des inventions et culture",1198,6,"Leonardo Fibonacci, mathématicien italien, introduit les chiffres indo-arabes (de zéro à 9) à Pise en remplacement des chiffres romains et révolutionne ainsi toutes les mathématiques de l'Occident."]
[61,1204,"mondiale","1204 (12 - 14 avril)",5,"Les croisés s’emparent de Constantinople en 3 jours et pillent sauvagement la ville."]
[62,1206,"mondiale",1206,5,"Gengis Khan unifie la Mongolie. Début des conquêtes mongoles en Asie centrale."]
[63,1215,"mondiale","1215 - 1250",5,"Frédéric II (Friedrich II von Hohenstaufen) est Empereur du Saint-Empire romain germanique."]
[64,1226,"des inventions et culture","dès 1226-1228",6,"Premières mentions de \"Robin Hood\" dans des registres judiciaires. Par la suite Robin des Bois est un personnage du folklore médiéval anglais, célèbre pour sa philosophie de « voler aux riches pour donner aux pauvres »."]
[65,1232,{"$f":"VLOOKUP(E67,$K$4:$L$9,2)","v":"des inventions et culture"},1232,6,"Les Chinois utilisèrent pour la première fois des roquettes au combat. Cet événement illustra l'utilisation militaire de la poudre à canon. Dès lors, l'usage de la poudre à canon se répandit rapidement à travers le monde."]
[66,1273,"mondiale",1273,5,"Fondation de la dynastie des Habsbourg avec Rodolphe Ier. Cette dynastie va exister jusqu'en 1918."]
[67,1275,"Suisse","1275 (20 octobre)",4,"Consécration de la cathédrale de Lausanne, sous le vocable de Notre-Dame, en présence du pape Grégoire X."]
[68,1291,"Suisse",1291,4,"Signature début août du Pacte fédéral par les hommes libres d'Uri, Schwytz et Nidwald."]
[69,1303,"de France","1303 (septembre)",3,"L'attentat d'Anagni est l'événement le plus marquant de la lutte opposant le roi de France Philippe le Bel au pape Boniface VIII."]
[70,1307,"Suisse",1307,4,"Le Serment du Grütli est un mythe fondateur de la Suisse de caractère légendaire. Trois Confédérés Arnold de Melchtal, Walter Fürst et Werner Stauffacher scellent le pacte d'alliance sur la prairie du Grütli. "]
[71,1309,"mondiale",1309,5,"Le pape Clément V décide de quitter Rome, dont il redoute des tensions grandissantes l'opposent à l'Empereur. Il s'installe alors en Avignon."]
[72,1315,"Suisse","1315 (15 novembre)",4,"Bataille de Morgarten au sud de Zurich. Là, quelque 1 500 confédérés suisses repoussèrent les 4 000 à 8 000 soldats du duc Léopold Ier d'Autriche, seigneur de Habsbourg."]
[73,1336,"des inventions et culture",1336,6,"Première horloge à sonner les heures. Elle sera installée sur un clocher de la ville de Milan."]
[74,1337,"mondiale","1337-1453",5,"Guerre de Cent Ans. Conflit entrecoupé de trêves plus ou moins longues, opposant la dynastie des Plantagenêts à celle des Valois, à travers elles, le royaume d'Angleterre et celui de France."]
[75,1347,"mondiale","1347-1350",5,"Pestes Noires , aussi appelées grande peste ou mort noire, est une pandémie de peste  bubonique. Elle touche l'Europe à travers les invasions mongoles faisant jusqu'à 200 millions de victimes à travers le monde. "]
[76,1386,"Suisse","1386 (juillet)",4,"Bataille de Sempach, décès de Léopold III de Habsbourg stoppant les prétentions des Habsbourg au sud du Rhin."]
[77,1402,"mondiale",1402,5,"Le conquérant mongol Tamerlan bat le sultan ottoman à la bataille d'Angor après avoir envahi la Syrie et ravagé Alep, Damas et Bagdad."]
[78,1411,"des inventions et culture","Vers 1411",6,"L'arquebuse (canon à main) apparaît dans les armées. Il s'agit d'une arme à feu individuelle de portée  limitée (moins de 50 mètres), assez lourde et encombrante, mais dont on pouvait épauler."]
[79,1429,"de France","1429-1431",3,"Chevauchée de Jeanne d’Arc. Elle  convainc le dauphin d’aller se faire sacrer à Reims. Cette chevauchée est couronnée de succès et donne à Charles VII le trône dont il avait été évincé par le traité de Troyes."]
[80,1450,"des inventions et culture",1450,6,"Invention de l'imprimerie par Johannes Gutenberg"]
[81,1453,"mondiale","1453 (6 avril - 29 mai)",5,"Les troupes ottomanes conduites par Mehmed II s’emparent de Constantinople. C'est la fin de l’Empire byzantin."]
[82,1453,"de France","1453 (17 juillet)",3,"Charles VII, roi de France, remporte la bataille de Castillon. C’est la fin de la guerre de Cent Ans."]
[83,1455,"des inventions et culture",1455,6,"La Bible est le premier livre imprimé par Gutenberg."]
[84,1473,"des inventions et culture","1473 (19 février)",6,"Naissance de Nicolas Copernic, astronome polonais, chanoine, médecin et mathématicien. Célèbre pour avoir développé la théorie de l'héliocentrisme, selon laquelle la Terre tourne autour du Soleil."]
[85,1476,"Suisse","1476 (22 juin)",4,"Bataille de Morat. Une victoire remportée en une journée par les Confédérés suisses et leurs alliés alsaciens sur l'armée bourguignonne du duc Charles le Téméraire."]
[86,1477,"des inventions et culture",1477,6,"Début de la construction de la 'Chapelle Sixtine' une des salles des palais pontificaux du Vatican. "]
[87,1485,"des inventions et culture",1485,6,"Sandro Botticelli peint \"La Naissance de Vénus\" exposée actuellement à la Galerie des Offices à Florence."]
[88,1492,"mondiale",1492,5,"Découverte de l’Amérique par Christophe Colomb."]
[89,1494,"mondiale","1494 ( 6 novembre)",5,"Naissance de Soliman Ier dit Soliman le Magnifique à Trébizonde dans l'actuelle Turquie. Il sera l'un des monarques les plus éminents de son siècle et présidera à l'apogée de la puissance de l'Empire ottoman."]
[90,1498,"mondiale",1498,5,"Vasco de Gama contourne l’Afrique pour atteindre les Indes."]
[91,1499,"Suisse","1499 (22 septembre)",4,"Signature du \"Traité de Bâle\" qui met fin à la guerre de Souabe. Fondamental, il marque la fin du siècle et  la reconnaissance de l'indépendance de la Confédération suisse face au Saint-Empire romain germanique."]
[92,1500,"des inventions et culture","Vers 1500",6,"Léonard de Vinci invente entre autres le parachute. "]
[93,1515,"Suisse",1515,4,"La Bataille de Marignan opposa François Ier aux mercenaires suisses qui défendaient le duché de Milan."]
[94,1516,"Suisse","1516 (29 novembre)",4,"François Ier, et les XIII Cantons suisses concluent une Paix perpétuelle à Fribourg. En dépit de la défaite de Marignan, les Confédérés acquièrent de nouveaux territoires et renforcent leur réputation militaire."]
[95,1519,"mondiale",1519,5,"Départ de Magellan pour effectuer le tour du monde en trois ans."]
[96,1520,"de France","1520-1550",3,"Les rois de France se font bâtir des châteaux en Île-de-France et Val de Loire"]
[97,1520,{"$f":"VLOOKUP(E99,$K$4:$L$9,2)","v":"Suisse"},1520,4,"Apparition de la réforme protestante (apparue 3 ans plus tôt dans le Saint-Empire avec Martin Luther) dans la confédération des XIII cantons."]
[98,1529,"Suisse","1529 (26 juin)",4,"Première guerre de Kappel. Les catholiques et les protestants déposèrent au dernier moment les armes et se réconcilièrent autour d’une soupe."]
[99,1533,"mondiale","1533 (11 juillet)",5,"Le roi d'Angleterre Henri VIII est excommunié par le Pape pour avoir divorcé de Catherine d'Aragon sans l'accord du Vatican. Cette rupture va mener à la création de l'Église Anglicane dont il sera à la tête."]
[100,1535,"Suisse","1536 (mars)",4,"Les Bernois conquièrent le Pays de Vaud et, le 29, occupent le château de Chillon qui conserve son rôle de forteresse, d’arsenal et de prison."]
[101,1539,"de France","1539 (août)",3,"Ordonnance de Villers-Cotterêts. François Ier impose l'usage du français dans les actes politiques et juridiques."]
[102,1540,"Suisse",1540,4,"Calvin fonde l’Église réformée à Genève."]
[103,1547,"mondiale","1547 (16 janvier)",5,"Le Prince russe Ivan IV Vassiliévitch dit Ivan le Terrible est sacré tsar de toutes les Russies à Moscou. Après la mort de sa femme Anastasia Romanovna, Ivan IV se lance dans un régime de terreur."]
[104,1571,"mondiale","1571 (7 octobre)",5,"Bataille de Lépante, dans le golfe de Patras, (côte occidentale de la Grèce).  C'est une bataille navale de la quatrième guerre vénéto-ottomane, où s'affrontent la flotte ottomane de Sélim II et la flotte de la Sainte-Ligue."]
[105,1572,"de France","1572 ( 23 - 24 août)",3,"Massacre de la Saint-Barthélemy. Une tuerie de masse ayant débuté le jour de la Saint-Barthélemy, et durant laquelle plusieurs milliers de protestants (huguenots) sont massacrés par des catholiques à Paris."]
[106,1582,"mondiale",1582,5,"Introduction du calendrier grégorien dans la nuit de 15 octobre."]
[107,1585,"de France","1585 (9 septembre)",3,"Naissance d'Armand Jean du Plessis de Richelieu, dit le cardinal de Richelieu. Ecclésiastique et homme d'État il fut ministre du roi Louis XIII. Il se distingue en entrant  au service de la régente Marie de Médicis."]
[108,1589,"de France","1589 ( 2 août)",3,"Assassinat du roi Henri III à Saint-Cloud, sans héritier, c’est la fin de la dynastie des Valois."]
[109,1598,"de France",1598,3,"Édit de Nantes signé par Henri IV qui tolère la religion protestante. En cette fin de siècle, il met fin aux guerres de Religion en France en accordant aux protestants des droits civils et religieux."]
[110,1602,"Suisse","1602 (11 - 12 décembre) ",4,"Durant cette nuit, 2 000 soldats savoyards tentèrent de prendre Genève en utilisant des échelles pour franchir les murailles (d'où le nom d'« Escalade »). La population se mobilisa pour infliger une défaite à Charles-Emmanuel Ier."]
[111,1610,"de France","1610 (14 mai)",3,"Assassinat à Paris du roi de France Henri IV par Ravaillac. Début du règne de Louis XIII sous la régence de Marie de Médicis."]
[112,1618,"de France","1618-1648",3,"Guerre de Trente Ans qui oppose les catholiques et protestants du Saint Empire."]
[113,1632,"des inventions et culture","1632 (31 octobre)",6,"Date du baptême à Delft de Johannes Vermeer, peintre néerlandais du mouvement baroque. Célèbre pour ses scènes domestiques intimes et pour la tableau \"La Jeune Fille à la perle\"."]
[114,1633,"des inventions et culture",1633,6,"Galilée est forcé par l'Église catholique de renier ses travaux  qui contredisaient le géocentrisme biblique. Il aurait murmuré après avoir abjuré devant le tribunal de l'Inquisition :  «Et pourtant, elle tourne ! »"]
[115,1643,"de France",1643,3,"Louis XIV (Le Roi-Soleil) devient roi à quatre ans.  8 ans sous la régence de sa mère, Anne d'Autriche, son règne durera 72 ans."]
[116,1648,"de France","1648-1653",3,"La Fronde. Une période de troubles qui frappent la France alors en guerre contre l’Espagne, pendant la minorité de Louis XIV. Période de révoltes face à la montée de l’autorité monarchique."]
[117,1648,"mondiale","1648 (24 octobre)",5,"Signature des traités de Wetsphalie concluants la querre de Trente Ans entre l'Europe de l'Ouest et le Saint-Empire romain germanique."]
[118,1649,"mondiale","1649 (30 janvier)",5,"Exécution de Charles Ier roi d’Angleterre. Il fut décapité à Whitehall, Londres, suite à la guerre civile anglaise et à son procès pour trahison."]
[119,1661,"de France",1661,3,"Début du règne personnel de Louis XIV."]
[120,1666,"mondiale",1666,5,"Le grand incendie de Londres. Il brûle 13 200 maisons, 87 églises paroissiales, la cathédrale Saint-Paul, et la majorité des bâtiments publics de la Cité."]
[121,1671,"des inventions et culture",1671,6,"L'Anglais Isaac Newton (célèbre pour sa loi de la gravitation universelle) invente le télescope à deux miroirs qui permet de grossir 40 fois les astres observés."]
[122,1682,"de France",1682,3,"Installation de la cour à Versailles. La France est la première puissance d’Europe."]
[123,1687,"des inventions et culture",1687,6,"Denis Papin  donne la première description d’une machine à vapeur qui fonctionne par le jeu alternatif d’un piston dans un cylindre."]
[124,1715,"de France",1715,3,"Mort de Louis XIV."]
[125,1717,"mondiale",1717,5,"Fondation de \"La Grande Loge d'Angleterre\". Première obédience maçonnique créée dans le monde à partir de la fusion de quatre loges londoniennes. "]
[126,1723,"Suisse","1723 (24 avril)",4,"Décapitation du major Davel.  Il est nommé par les Bernois à la tête du commandement des milices vaudoises de Lavaux. Son plan visant à l'autonomie du Pays de Vaud lui vaudra arrestation, puis exécution."]
[127,1723,"des inventions et culture","1723 (5 juin)",6,"Naissance d'Adam Smith, économiste écossais, célèbre pour \"la main invisible\". Une expression  qui désigne la théorie selon laquelle l'ensemble des actions individuelles  contribuent à la richesse et au bien commun."]
[128,1743,"des inventions et culture","1743 (26 août)",6,"Naissance d'Antoine Lavoisier, chimiste français. Avec Berthollet il  conçoit une nomenclature chimique  qui sert de base au système moderne. On lui doit la maxime « Rien ne se perd, rien ne se crée, tout se transforme »."]
[129,1751,{"$f":"VLOOKUP(E131,$K$4:$L$9,2)","v":"des inventions et culture"},1751,6,"Parution du volume I de \"L’Encyclopédie ou Dictionnaire raisonné des sciences, des arts et des métiers\" . Édité sous la direction de Denis Diderot et, partiellement, de Jean Le Rond d'Alembert et Louis de Jaucourt."]
[130,1756,"des inventions et culture",1756,6,"Début de la \"Guerre de 7 ans\" opposant la France à l'Angleterre. John Smeaton perfectionne la chaux hydraulique, un mortier capable de durcir sous l'eau en mélangeant de la chaux et l'argile, ouvrant la voie vers le ciment."]
[131,1761,"des inventions et culture","1761 (février) ",6,"Jean-Jacques Rousseau fait paraître son roman épistolaire \"Julie ou la Nouvelle Héloïse\" qui sera l'un des plus grands succès de librairie de son siècle, révélant ainsi la place faite à la sensibilité au temps des Lumières."]
[132,1761,"des inventions et culture","1761 (décembre)",6,"En cette fin d'année, Wolfgang Amadeus Mozart compose sa première œuvre : le menuet en sol majeur, catalogué sous le numéro KV 1. Il a 5 ans."]
[133,1776,"mondiale","1776 (4 juillet)",5,"Déclaration d'indépendance des États-Unis. Treize Colonies  de l'Empire britannique en Amérique ont déclaré leur souveraineté vis-à-vis de la Grande-Bretagne  pour former les « États-Unis d'Amérique ». "]
[134,1784,"des inventions et culture",1784,6,"James Watt fait breveter une locomotive à vapeur.  Il introduit une unité appelée le cheval-vapeur pour comparer la puissance fournie par les machines à vapeur."]
[135,1787,"mondiale","1787 (17 septembre)",5,"Acceptation  de la Constitution des États-Unis. Selon ses propres termes, c'est la loi suprême des États-Unis d'Amérique."]
[136,1789,"de France",1789,3,"Révolution française. Prise de la Bastille le 14 juillet."]
[137,1789,"de France","1789 (26 août)",3,"La Déclaration des droits de l'homme et du citoyen est acceptée par l’Assemblée constituante comme préambule de la Constitution française."]
[138,1792,"Suisse",1792,4,"La France déclare la guerre à l'Autriche et envahit la Suisse. La Diète fédérale, de son côté, proclame le 13 mai à Frauenfeld sa neutralité dans le conflit."]
[139,1798,"Suisse","1798 (24 janvier)",4,"L'indépendance vaudoise. Le Pays de Vaud met fin à la domination bernoise. Étape cruciale de l'histoire vaudoise. L'indépendance fut proclamée  sur la place de la Palud, suite à un soutien de la France révolutionnaire. "]
[140,1798,"Suisse",1798,4,"la République française sous le Directoire impose sa domination en Europe, marquant la création de la République helvétique (12 avril) sur le modèle unitaire français, abolissant l'ancienne Confédération suisse."]
[141,1799,"de France",1799,3,"Bonaparte devient Premier Consul et établi de régime du Consulat. En tant que Premier Consul, Bonaparte détient les pleins pouvoirs exécutifs, diplomatiques et militaires, tout en contrôlant le pouvoir législatif."]
[142,1800,"des inventions et culture",1800,6,"Invention de la pile électrique par le physicien italien Alessandro Volta"]
[143,1801,"des inventions et culture",1801,6,"Mise au point par Joseph Marie Jacquard avec l'aide du menuisier Jean-Antoine Breton du premier métier à tisser, système mécanique programmable avec cartes perforées."]
[144,1803,"Suisse",1803,4,"Entrée dans la Confédération Suisse des cantons de St.-Gall, des Grisons, d'Argovie,  de Thurgovie, du Tessin et de Vaud."]
[145,1803,"Suisse","1803 (19 février) ",4,"L'« Acte de Médiation entre les partis qui divisent la Suisse » est signé par Bonaparte à Paris, attribuant une nouvelle constitution à la Suisse et à ses cantons. La Suisse est désormais organisée selon une confédération d'États. "]
[146,1803,"de France","1803 (18 novembre)",3,"Haïti chasse les Français. Sur l'île de Saint-Domingue, une bataille met fin à la tentative de Napoléon de restaurer la souveraineté de la France. L'armée française capitule. Haïti deviendra le premier État noir indépendant."]
[147,1804,"de France",1804,3,"Le sacre de Napoléon Ier, le 2 décembre, est la cérémonie d'intronisation et de couronnement qui suivit la proclamation de Napoléon Bonaparte comme empereur des Français. C'est le début de l’Empire."]
[148,1805,"mondiale","1805 (21 octobre)",5,"Bataille de Trafalgar opposant les flottes françaises de Napoléon et espagnoles à la flotte britannique commandée par Nelson, au large du Cap de Trafalgar (E). La victoire des Britanniques est totale."]
[149,1807,"mondiale","1807 (4 juillet)",5,"Naissance du général Giuseppe Garibaldi, considéré, avec Cavour, Victor-Emmanuel II et Mazzini, comme l’un des « pères de la patrie » italienne."]
[150,1815,"Suisse",1815,4,"Entrée dans la Confédération Suisse des cantons du Valais de Genève et de Neuchâtel."]
[151,1815,"mondiale","1815 (9 juin)",5,"Acte final du Congrès de Vienne qui rétablit l’ordre ancien des princes sur l’Europe. Les pays vainqueurs de Napoléon Ier ainsi que les autres États européens se réunissent pour rédiger et signer les conditions de la paix."]
[152,1815,"mondiale","1815 (18 juin)",5,"Bataille de Waterloo en Belgique. Elle a opposé l'armée de Napoléon Ier, à l'armée des Alliés, dirigée par le duc de Wellington. Défaite décisive de l'armée française 9 jours après la signature du Congrès de Vienne."]
[153,1830,"de France",1830,3,"Conquête de l’Algérie par la France."]
[154,1840,"des inventions et culture",1840,6,"Pierre-Joseph Proudhon, journaliste, économiste, philosophe et homme politique français, écrit dans son premier ouvrage \"Qu'est-ce que la propriété ?\" la formule qui le rendit célèbre : « La propriété, c'est le vol ! »"]
[155,1847,"Suisse","1847 (novembre)",4,"Guerre du Sonderbund. Guerre civile sécessionniste.  Victoire des troupes fédérales, commandées par le Général Dufour, sur celles des 7 cantons catholiques (Ligue  du Sonderbund)."]
[156,1848,"Suisse","1848 (12 septembre)",4,"La Suisse moderne est née avec l'entrée en vigueur de la Constitution fédérale."]
[157,1859,"des inventions et culture",1859,6,"Réalisation du premier moteur à combustion à deux temps par Étienne Lenoir."]
[158,1860,"des inventions et culture",1860,6,"Au début de cette année, de jeunes peintres se regroupent pour créer une nouvelle peinture. Ils se détachent des règles trop strictes de l'Académie. L'impressionniste est né avec Monet, Renoir, Cézanne, Degas entre autres."]
[159,1863,"des inventions et culture","1863 (17 février)",6,"Fondation à Genève par Henry Dunant du «Comité International de secours aux militaires blessés en campagne », désigné trois années plus tard, par le nom de « Comité international de la Croix-Rouge »"]
[160,1864,"mondiale","dès 1864",5,"Le Phylloxéra. Ce puceron, de moins de 0,50 mm, originaire des États-Unis, a ravagé pendant des années des millions d’hectares de vignobles, bouleversant la culture traditionnelle de la Vigne européenne."]
[161,1865,{"$f":"VLOOKUP(E163,$K$4:$L$9,2)","v":"des inventions et culture"},1865,6,"Naissance le 31 mars à Eisenach dans le duché de Saxe-Eisenach de Jean-Sébastien Bach, compositeur et musicien allemand. Mort à Leipzig à l'âge de 65 ans."]
[162,1869,"mondiale","1869 (17 novembre) ",5,"Inauguration du canal de Suez reliant la mer Méditerranée à la mer Rouge. Cet événement majeur a marqué l'aboutissement d'un chantier de dix ans dirigé par le français Ferdinand de Lesseps."]
[163,1874,"Suisse",1874,4,"Le droit de référendum. Révision de la Constitution et introduction du droit de référendum."]
[164,1876,"des inventions et culture",1876,6,"Invention du téléphone par Alexander Graham Bell. Dépôt du brevet pour la transmission de la voix humaine le 14 février."]
[165,1878,"des inventions et culture",1878,6,"Invention du phonographe par Thomas Edison"]
[166,1879,"des inventions et culture","1879 (4 novembre)",6,"Thomas Edison dépose ce jour un brevet pour une ampoule électrique en utilisant un filament de carbone dans une ampoule sous vide."]
[167,1885,"des inventions et culture",1885,6,"Pasteur découvre le vaccin contre la rage."]
[168,1894,{"$f":"VLOOKUP(E170,$K$4:$L$9,2)","v":"de France"},"dès 1894",3,"Affaire Dreyfus.  Une affaire d'État devenue un conflit social et politique majeur  en France autour de l'accusation de trahison faite au capitaine Alfred Dreyfus, juif d'origine alsacienne, qui sera finalement innocenté."]
[169,1898,"Suisse",1898,4,"Rachat des Chemins de fer suisses par la Confédération menant à la création des Chemins de fer fédéraux suisses (CFF)"]
[170,1903,"des inventions et culture",1903,6,"Premier vol d'un avion motorisé réalisé par les frères Wright"]
[171,1905,"des inventions et culture",1905,6,"Albert Einstein publie la célèbre formule de la relativité :  E = mc2 soulevant ainsi de nouveaux horizons à la physique."]
[172,1907,"Suisse",1907,4,"Création de la Banque Nationale suisse (BNS)."]
[173,1912,"mondiale","1912 (14 avri)",5,"Naufrage du Titanic qui devait relier Southampton à New York et qui a  heurté un iceberg. Environ 1500 personnes périssent."]
[174,1914,"mondiale","1914 (28 juin)",5,"Assassinat de François-Ferdinand, l’archiduc d’Autriche et prince héritier de l’empire austro-hongrois. "]
[175,1914,"mondiale","1914 (1er août)",5,"L’Allemagne déclare la guerre à la Russie. Le général Paul von HINDENBURG est à la tête de l'armée."]
[176,1914,"mondiale","1914 (3 août)",5,"L’Allemagne déclare la guerre à la France et envahit la Belgique et le Luxembourg."]
[177,1916,"de France","1916 (21 fév.-18 déc.)",3,"Verdun. Une bataille qui s'est déroulée en Lorraine en  opposant les armées française et allemande. Elle a fait plus de 305 000 tués et 400 000 blessés. Victoire défensive française et échec de l’offensive allemande."]
[178,1917,"mondiale","1917 (février)",5,"Révolution russe  ayant conduit au renversement spontané du régime tsariste de Russie."]
[179,1918,"mondiale","1918 (11 novembre)",5,"Armistice. Victoire des Alliés. Elle marque la fin des combats de la Première Guerre mondiale sur le front occidental. Ce document n'est pas un traité de paix ; le traité de paix, tel que le traité de Versailles, est signé plus tard. "]
[180,1922,"mondiale","1922 (30 décembre)",5,"Fondation de l’URSS (Union des républiques socialistes soviétiques)  ratifiée par le Congrès des soviets de Russie, de Biélorussie, d'Ukraine et de Transcaucasie. État marxiste-léniniste, sous la direction du Parti communiste."]
[181,1924,"mondiale","1924-1953",5,"Staline est au pouvoir en U.R.S.S."]
[182,1929,"mondiale","1929 (24 - 29 octobre)",5,"Krach de Wall Street (jeudi noir). La crise économique mondiale qui suit cette crise boursière provoque un chômage massif."]
[183,1933,"mondiale","1933 (30 janvier)",5,"Adolf Hitler est nommé chancelier d'Allemagne par le président Paul von Hindenburg après avoir remporté les élections."]
[184,1940,"de France",1940,3,"Appel du Général de Gaulle à Londres le 18 juin  pour la résistance."]
[185,1944,"mondiale",1944,5,"Débarquement de Normandie, nom de code opération Neptune. C'est une vaste opération militaire amphibie et aéroportée alliée de la Seconde Guerre mondiale lancée dans la nuit du 5 au 6 juin."]
[186,1945,"mondiale",1945,5,"Capitulation de l'Allemagne en mai."]
[187,1954,"de France",1954,3,"La France renonce à l’Indochine."]
[188,1957,"mondiale","1957 (25 mars)",5,"Signature du traité de Rome instituant la Communauté économique européenne entre six pays : Allemagne de l'Ouest, Belgique, France, Italie, Luxembourg et Pays-Bas."]
[189,1958,"des inventions et culture",1958,6,"Jack Kilby crée le premier circuit intégré."]
[190,1960,"des inventions et culture","1960 (16 mai)",6,"Theodore H. Maiman, ingénieur californien, reprit les études d’Einstein et actionna le premier laser dans les laboratoires Hughes Research à Malibu."]
[191,1963,"mondiale","1963 (22 novembre)",5,"Assassinat de John F. Kennedy, président des États-Unis à Dallas. En tournée électorale, le cortège traverse à vitesse réduite le centre-ville lorsque la voiture présidentielle, décapotée et touchée par des tirs."]
[192,1969,"des inventions et culture",1969,6,"Premiers pas de l'homme sur la lune, le 20 juillet."]
[193,1971,"Suisse",1971,4,"Les femmes suisses obtiennent le droit de vote au niveau fédéral."]
[194,1975,{"$f":"VLOOKUP(E196,$K$4:$L$9,2)","v":"mondiale"},1975,5,"Année du décès de Chang Kaï-chek au pouvoir pendant 47 ans à Taïwan (Formose). Son ennemi de toujours, Mao Zedong décède l'année suivante à Pékin après avoir été 27 ans à la tête de la Chine."]
[195,1978,"Suisse","1978 (24 septembre)",4,"Création du canton du Jura, officiellement la République et Canton du Jura. Composé de trois districts avec comme chef-lieu Delémont il est le plus récent canton de Suisse."]
[196,1989,"mondiale","1989 (9 novembre)",5,"Chute du mur de Berlin."]
[197,1989,"des inventions et culture",1989,6,"Au CERN, Sir Timothy John Berners-Lee donne naissance au «world-wide web»."]
[198,1991,"mondiale","1991 (26 décembre)",5,"Dislocation de l'URSS. Le Soviet suprême  et celui des républiques  reconnaissent  les indépendances des républiques de l'Union. La veille Mikhaïl Gorbatchev avait démissionné en transférant ses pouvoirs à  Boris Eltsine."]
[199,2001,"Suisse","2001 (2 octobre)",4,"Swissair n'est plus en mesure de payer ses factures, les vols sont suspendus et l'ensemble de la flotte reste au sol. 39 000 passagers sont bloqués. Cet épisode est connu sous le nom de « grounding »,"]
[200,2002,"Suisse","2002 (11 septembre)",4,"La Suisse devient le 190e état membre de l'Organisation des Nations unies (Initiative populaire pour l'adhésion à l'ONU)."]
[201,null,null,null,null,"fin"]

{"sheet":"Images","index":5,"n_rows":207,"n_cols":203,"rows_kept":207,"cut":false,"hidden":true,"merged":[[137,3,137,9],[165,3,165,9],[159,3,159,9]]}
[null,1,2,3,4,5,6,7,8,9,10,11,12,13,14,15,16,17,18,19,20,21,22,23,24,25,26,27,28,29,30,31,32,33,34,35,36,37,38,39,40,41,42,42,43,45,46,47,48,49,50,51,52,53,54,55,56,57,58,59,60,61,62,63,64,65,66,67,68,69,70,71,72,73,74,75,76,77,78,79,80,81,82,83,84,85,86,87,88,89,90,91,92,93,94,95,96,97,98,99,100,101,102,103,104,105,106,107,108,109,110,111,112,113,114,115,116,117,118,119,120,121,122,123,124,125,126,127,128,129,130,131,132,133,134,135,136,137,138,139,140,141,142,143,144,145,146,147,148,149,150,151,152,153,155,156,157,158,159,160,161,162,163,164,165,166,167,168,null,169,170,171,172,173,174,175,176,177,178,179,180,181,182,183,184,185,186,187,188,189,190,191,192,193,194,195,196,197,198,199,200,201,202]
[null,null,null,null,null,null,null,null,null,null,null,null,null,null,null,null,null,null,null,null,null,null,null,null,null,null,null,null,null,null,null,null,null,null,null,null,null,null,null,null,null,null,null,null,null,null,null,null,null,null,null,null,null,null,null,null,null,null,null,null,null,null,null,null,null,null,null,null,null,null,null,null,null,null,null,null,null,null,null,null,"            ",null,null,null,null,null,null,null,null,null,null,null,null,null,null,null,null,null,null,null,null,null,null,null,null,null,null,null,null,null,null,null,null,null,null,null,null,null,null,null,null,null,null,null,null,null,null,null,null,null,null,null,null,null,null,null,null,null,null,null,null,null,null,null,null,null,null,null,null,null,null,null,null,null," "]
[]
[]
[null,"il y a 400 000 ans","Vers 19000 avant J.-C.","Vers 10500 avant J.-C.","Vers 8000 avant J.-C.","Vers 5000 avant J.-C.","Vers 3500 avant J.-C.","Vers 3000 avant J.-C.","Vers 2800 avant J.-C.","vers 2589-2566 av. J.-C.","Vers 2000 avant J.-C.","Vers 1590 avant J.-C.","1560 avant J.-C.","Vers 1300 avant J.-C.","Vers 1200 avant J.-C.","Vers 780 avant J.-C.","776 avant J.-C.","753 avant J.-C.","Vers 650 avant J.-C..","vers 623 av. J.-C. ","586 avant J.-C.","490 avant J.-C.","356 avant J.-C. (juillet)","348 avant J.-C.","Vers 300 avant J.-C.","Vers 287 avant J.-C.","Vers 280 avant J.-C.","247 avant J.-C.","168 avant J.-C.","52 avant J.-C.","entre 51 et 30 av. J.-C. ","15 avant J.-C.",37,64,79,105,313,395,410,443,476,481,"Vers 610",624,"Vers 629- 630","632 (4 juin)",632,751,"800 (25 décembre)",828,"fin 885 - 886","dès 897",962,"987 (3 juillet)","Vers 1001",1054,"1095 (19 juin)",1099,"1129 (13 janvier)",1173,1198,"1204 (12 -14 avril)",1206,"1215 - 1250","dès 1226-1228",1232,1273,"1275 (20 ocobre)",1291,"1303 (septembre)",1307,1309,"1315 (15 novembre)",1336,"1337-1453","1347-1350","1386 (juillet)",1402,"Vers 1411","1429-1431",1450,"1453 (6 avril - 29 mai)","1453 (17 juillet)",1455,"1473 (19 février)","1476 (22 juin)",1477,1485,1492,"1494 ( 6 novembre)",1498,"1499 (22 septembre)","Vers 1500",1515,"1516 (29 novembre)",1519,"1520-1550",1520,"1529 (26 juin)","1533 (11 juillet)","1536 (mars)","1539 (août)",1540,"1547 (16 janvier)","1571 (7 octobre)","1572 ( 23 - 24 août)",1582,"1585 (9 septembre)","1589 ( 2 août)",1598,"1602 (11 - 12 décembre) ","1610 (14 mai)","1618-1648","1632 (31 octobre)",1633,1643,"1648-1653","1648 (24 octobre)","1649 (30 janvier)",1661,1666,1671,1682,1687,1715,1717,"1723 (24 avril)","1723 (5 juin)","1743 (26 août)",1751,1756,"1761 (février) ",1761,"1776 (4 juillet)",1784,"1787 (17 septembre)",1789,"1789 (26 août)",1792,"1798 (24 janvier)",1798,1799,1800,1801,1803,"1803 (19 février)","1803 (18 novembre)",1804,"1805 (21 octobre)","1807 (4 juillet)",1815,"1815 (9 juin)","1815 (18 juin)",1830,1840,"1847 (novembre)","1848 (12 septembre)",1859,1860,"1863 (17 février)","dès 1864",1865,1869,1874,1876,1878,"1879 (4 novembre)",1885,"dès 1894",1898,1903,1905,1907,"1912 (14 avri)","1914 (28 juin)","1914 (1er août)","1914 (3 août)","1916 (21 fév.-18 déc.)","1917 (février)","1918 (11 novembre)","1922 (30 décembre)","1924-1953","1929 (24 -29 octobre)","1933 (30 janvier)",1940,1944,1945,1954,"1957 (25 mars)",1958,"1960 (16 mai)","1963 (22 novembre)",1969,1971,1975,"1978 (24 septembre)",1989,1991,"1991 (26 décembre)","2001 (2 octobre)","2002 (11 septembre)"]
[null,1,1,6,1,1,6,6,1,2,2,2,2,2,2,6,2,2,6,6,2,2,2,2,6,6,2,2,2,2,2,2,2,2,2,6,2,2,2,2,2,3,6,5,5,5,3,3,3,5,3,5,5,3,5,5,5,5,5,5,6,5,5,5,6,6,5,4,4,3,4,5,4,6,5,5,4,5,6,3,6,5,3,6,6,4,6,6,5,5,5,4,6,4,4,5,3,4,4,5,4,3,4,5,5,3,5,3,3,3,4,3,3,6,6,3,3,5,5,3,5,6,3,6,3,5,4,6,6,6,6,6,6,5,6,5,3,3,4,4,4,3,6,6,4,4,3,3,5,5,4,5,5,3,6,4,4,6,6,6,5,6,5,4,6,6,6,6,3,4,6,6,4,5,5,5,5,3,5,5,5,5,5,5,3,5,5,3,5,6,6,5,6,4,5,4,5,6,5,4,4]
[null,"L'homme de Néandertal maîtrisait parfaitement le feu, l'utilisant pour se chauffer, s'éclairer, cuisiner et fabriquer des outils.  Il savait produire le feu par percussion (silex et pyrite).","Des Magdaléniens dessinent des figures d'animaux dans leurs grottes, comme celles retrouvées en 1940 à Lascaux en Dordogne.","Au Japon, première et plus ancienne époque de fabrication de la céramique  connue dans le monde","Débute le néolithique, les hommes cultivent des plantes et domestiquent des animaux ","Début de la culture du maïs dans la vallée de Tehuacán (Mexique actuel).","La roue de transport  est attribuée à Sumer en Basse Mésopotamie.","Les hommes inventent l’écriture, c’est la fin de la période néolithique.","La métallurgie du bronze (alliage de cuivre et d'étain, plus dur que le cuivre seul, ce qui permet de fabriquer des outils plus résistants) parvient  en Grèce et en Crète.  800 ans  plus tard en Europe de l'Ouest et en Chine.","Construction de la pyramide de Khéops pour le complexe de Gizeh. Elle est commandée par le pharaon Khéops durant l'Ancien Empire.","Première utilisation du zéro pas les babyloniens. Les Arabes l'intégreront à leur système de numération au cours du Xe siècle.","Les pharaons momifiés sont ensevelis dans la Vallée des Rois située sur la rive gauche du Nil face à Thèbes.","Naissance de Moïse. La tradition juive place cette année en utilisant un schéma de 40 ans pour sa jeunesse, son séjour dans le désert, et l'errance dans le désert.","Arrivée du fer en Grèce. Le monde grec entre dans le premier âge du fer.","Les Hébreux s’installent dans le pays de Canaan, entre le fleuve Jourdain et la mer Méditerranée, après des années d’ exode. ","L’Odyssée est une épopée grecque attribuée à Homère.  Elle est considérée, avec l’Iliade, comme l'un des  « poèmes fondateurs » de la culture antique et comme l’un des plus grands chefs-d’œuvre de la littérature mondiale.","Premiers Jeux Olympiques à Olympie.","Fondation de Rome.","Apparition des premières pièces de monnaie en Lydie (région occidentale de l'Anatolie). Le roi Crésus y établit un système monétaire avec des pièces faites d'électrum, un alliage d'or et d'argent.","Naissance du Bouddha, Siddhartha Gautama. Fils du roi Shuddhodana et de la reine Maya (Népal actuel). Il choisit la voie de l'éveil après avoir découvert la souffrance humaine.","Le premier temple de Jérusalem (ou Temple de Saloman) est entièrement détruit par Nabuchodonosor II, roi de Babylone. C’est la fin du royaume de Juda (un royaume d’Israël).","A Marathon, 9 000 hoplites athéniens et leurs 1 000 alliés platéens infligent une cuisante défaite aux 40 000 soldats de l’Empire perse.","Naissance  d'Alexandre le Grand. Roi de Macédoine, il devient l'un des plus grands conquérants de l'histoire en prenant possession de l'immense Empire perse et en s'avançant jusqu'aux rives de l'Indus.      ","Le Parthénon construit sur l'Acropole d'Athènes est consacré à la déesse Athéna Parthénos en cette année.","Euclide écrit  un traité de mathématiques présentant de manière systématique un large ensemble de théorèmes accompagnés de leurs démonstrations. Il porte sur la géométrie et l'arithmétique.","Archimède nait à Syracuse. Grand scientifique connu pour son principe selon lequel  « Tout corps plongé dans un fluide subit une force verticale, dirigée de bas en haut, égale  au poids du volume de fluide déplacé\".","Construction du Phare d'Alexandrie","Naissance à Carthage de Hannibal, considéré comme l'un des plus grands tacticiens militaires de l'Histoire. Il a fait trembler les romains en franchissant les Alpes avec ses éléphants.","Début de la conquête romaine.","Guerre des Gaules et victoire romaine de César à Alésia.","Règne de Cléopâtre VII en Égypte. Cléopâtre a la réputation d'avoir usé de son sens de la politique et de son charme irrésistible pour asseoir son pouvoir.","Lousonna, vicus gallo-romain est érigée au bord du Léman dans l'actuel quartier de Vidy au bord du Léman.","Naissance de Lucius Domitius Ahenobarbus, qui deviendra empereur romain à l'âge de 17 ans sous le nom de Néron.","Incendie de Rome, début des persécutions contre les chrétiens.","Éruption du Vésuve qui a enseveli sous les éjectas volcaniques Pompéi et Herculanum.","L’invention du papier est attribuée à Ts’ai Lun, un dignitaire de la cour impériale chinoise.","Édit de Constantin (ou Édit de Milan) accorde la liberté de culte aux chrétiens et ordonne que leur soient restitués  biens et bâtiments  confisqués durant la Grande persécution.","Partage de l’Empire, Empire romain d’occident et Empire romain d’Orient.","Prise de Rome par les Goths.","Les Burgondes, un peuple germanique, sont installés par le général romain Aetius dans la région du lac Léman pour défendre l'Empire romain contre les Alamans. Ils adoptent rapidement la langue et la culture gallo-romaines. ","Chute de l’Empire romain d’occident et fin de l’Antiquité. L’Empire romain d’orient subsiste sous le nom d’Empire Byzantin avec pour capitale : Constantinople.","Avènement de Clovis Iᵉʳ roi des Francs saliens, puis roi de tous les Francs. Premier roi de France, il est à l'origine de la dynastie des Mérovingiens.","L'islam est né  dans la péninsule arabique. Mahomet, alors marchand à La Mecque, reçoit ses premières révélations de l'archange Gabriel. Il commence alors à prêcher le monothéisme (crois en un Dieu unique, Allah).","Victoire de Badr sur les Mecquois. Allah ordonne le changement de Qibla ( la prière est dirigée vers La Mecque et non plus vers Jérusalem ) et fixation du jeûne du mois de Ramadhan.","Expulsion des Juifs de Jérusalem par Héraclius. Cette déportation donne lieu à des violences anti-juives à travers l’Empire romain d’orient et le patriarche Cyrus d’Alexandrie","Mort à Médine de Mahomet. Chef religieux, politique et militaire arabe issu de la tribu de Quraych. Fondateur de l'islam, il en est considéré comme le prophète majeur.","A la mort de son frère, Dagobert  devient cette année là l’unique roi des Francs et seul maître d’un royaume mérovingien qui s’étend des Pyrénées au Rhin, de la Bretagne à l’Elbe.","Pépin le Bref devient roi des Francs : la dynastie carolingienne est fondée.","Sacre de l’empereur Charlemagne et Aix-la-Chapelle devient capitale du royaume.","Début de la construction à Venise de la Basilique cathédrale Saint-Marc sur l'emplacement de la chapelle privée du palais des Doges.","Pillage de Paris par les Vikings.","La sécheresse importante en Amérique centrale qui toucha le Mexique aurait pu contribuer à la chute des Mayas. ","Couronnement d'Otton Ier. Le Saint-Empire romain germanique est constitué. IL s'étend de la mer du Nord aux États pontificaux, à l'est quatre fleuves délimitant la Francie: l'Escaut, la Meuse, la Saône et le Rhône.","Le dernier roi Carolingien Louis V meurt sans descendance. Hugues Capet lui succède et fonde la dynastie des Capétiens. Date probable du couronnement.","Découverte possible de l’Amérique par Leif Erikson, un proche parent d’Erik le Rouge venu de Norvège pour rejoindre son père au Groenland et dérouté par les vents.","Schisme d’Orient entre l’église catholique d’occident et l’église orthodoxe d’Orient. ","Au concil de Clermont, appel à la croisade par le pape Urbain II.","Siège et prise de Jérusalem par les croisés.","Création de l'Ordre du Temple à l'occasion du concile de Troyes à partir d'une milice de Français chrétiens appelée la Milice des Pauvres Chevaliers du Christ et du Temple de Salomon. Les membres sont appelés les Templiers.","Début de la construction de la Tour de Pise (campanile de la cathédrale Notre-Dame de l’Assomption de Pise, en Toscane.","Leonardo Fibonacci, mathématicien italien, introduit les chiffres indo-arabes (de zéro à 9) à Pise en remplacement des chiffres romains et révolutionne ainsi toutes les mathématiques de l'Occident.","Les croisés s’emparent de Constantinople en 3 jours et pillent sauvagement la ville.","Gengis Khan unifie la Mongolie. Début des conquêtes mongoles en Asie centrale.","Frédéric II (Friedrich II von Hohenstaufen) est Empereur du Saint-Empire romain germanique.","Premières mentions de \"Robin Hood\" dans des registres judiciaires. Par la suite Robin des Bois est un personnage du folklore médiéval anglais, célèbre pour sa philosophie de « voler aux riches pour donner aux pauvres ».","Les Chinois utilisèrent pour la première fois des roquettes au combat. Cet événement illustra l'utilisation militaire de la poudre à canon. Dès lors, l'usage de la poudre à canon se répandit rapidement à travers le monde.","Fondation de la dynastie des Habsbourg avec Rodolphe Ier. Cette dynastie va exister jusqu'en 1918.","Consécration de la cathédrale de Lausanne, sous le vocable de Notre-Dame, en présence du pape Grégoire X.","Signature début août du Pacte fédéral par les hommes libres d'Uri, Schwytz et Nidwald.","L'attentat d'Anagni est l'événement le plus marquant de la lutte opposant le roi de France Philippe le Bel au pape Boniface VIII.","Le Serment du Grütli est un mythe fondateur de la Suisse de caractère légendaire. Trois Confédérés Arnold de Melchtal, Walter Fürst et Werner Stauffacher scellent le pacte d'alliance sur la prairie du Grütli. ","Le pape Clément V décide de quitter Rome dont il redoute des tensions grandissantes l'opposent à l'Empereur. Il s'installe alors en Avignon.","Bataille de Morgarten au sud de Zurich. Là, quelque 1 500 confédérés suisses repoussèrent les 4 000 à 8 000 soldats du duc Léopold Ier d'Autriche, seigneur de Habsbourg.","Première horloge à sonner les heures. Elle sera installée sur un clocher de la ville de Milan.","Guerre de Cent Ans. Conflit entrecoupé de trêves plus ou moins longues, opposant la dynastie des Plantagenêts à celle des Valois, à travers elles, le royaume d'Angleterre et celui de France.","Pestes Noires , aussi appelée grande peste ou mort noire, est une pandémie de peste  bubonique. Elle touche l'Europe à travers les invasions mongoles faisant jusqu'à 200 millions de victimes à travers le monde. ","Bataille de Sempach, décès de Léopold III de Habsbourg stoppant les prétentions des Habsbourg au sud du Rhin.","Le conquérant mongol Tamerlan bat le sultan ottoman à la bataille d'Angor après avoir envahi la Syrie et ravagé Alep, Damas et Bagdad.","L'arquebuse (canon à main) apparaît dans les armées. Il s'agit d'une arme à feu individuelle de portée  limitée (moins de 50 mètres), assez lourde et encombrante, mais dont on pouvait épauler.","Chevauchée de Jeanne d’Arc. Elle  convainc le dauphin d’aller se faire sacrer à Reims. Cette chevauchée est couronnée de succès et donne à Charles VII le trône dont il avait été évincé par le traité de Troyes.","Invention de l'imprimerie par Johannes Gutenberg","Les troupes ottomanes conduites par Mehmed II s’emparent de Constantinople. C'est la fin de l’Empire byzantin.","Charles VII, roi de France remporte la bataille de Castillon. C’est la fin de la Guerre de Cent Ans.","La Bible est le premier livre imprimé par Gutenberg.","Naissance de Nicolas Copernic, astronome polonais, chanoine, médecin et mathématicien. Célèbre pour avoir développé la théorie de l'héliocentrisme, selon laquelle la Terre tourne autour du Soleil.","Bataille de Morat. Une victoire remportée en une journée par les Confédérés suisses et leurs alliés alsaciens sur l'armée bourguignonne du duc Charles le Téméraire.","Début de la construction de la 'Chapelle Sixtine' une des salles des palais pontificaux du Vatican. ","Sandro Botticelli peint \"La Naissance de Vénus\" exposée actuellement à la Galerie des Offices à Florence.","Découverte de l’Amérique par Christophe Colomb.","Naissance de Soliman Ier dit Soliman le Magnifique à Trébizonde dans l'actuelle Turquie. Il sera l'un des monarques les plus éminents de son siècle et présida à l'apogée de la puissance de l'Empire ottoman.","Vasco de Gama contourne l’Afrique pour atteindre les Indes.","Signature du \"Traité de Bâle\" qui met fin à la guerre de Souabe.Il est fondamental car il marque la reconnaissance de facto de l'indépendance de la Confédération suisse face au Saint-Empire romain germanique.","Léonard de Vinci invente entre autres le parachute. ","La Bataille de Marignan opposa François Ier aux mercenaires suisses qui défendaient le duché de Milan.","François Ier, et les XIII Cantons suisses concluent une Paix perpétuelle à Fribourg. En dépit de la défaite de Marignan, les Confédérés acquièrent de nouveaux territoires et renforcent leur réputation militaire.","Départ de Magellan pour effectuer le tour du monde en trois ans.","Les rois de France se font bâtir des châteaux en Île-de-France et Val de Loire","Apparition de la réforme protestante (apparue 3 ans plus tôt dans le Saint-Empire avec Martin Luther) dans la confédération des XIII cantons.","Première guerre de Kappel. Les catholiques et les protestants déposèrent au dernier moment les armes et se réconcilièrent autour d’une soupe.","Le roi d'Angleterre Henri VIII est excommunié par le Pape pour avoir divorcé de Catherine d'Aragon sans l'accord du Vatican. Cette rupture va mener à la création de l'Eglise Anglicane dont il sera à la tête.","Les Bernois, conquièrent le Pays de Vaud et, le 29, occupent le château de Chillon qui conserve son rôle de forteresse, d’arsenal et de prison.","Ordonnance de Villers-Cotterêts. François Ier impose l'usage du français dans les actes politiques et juridiques.","Calvin fonde l’Église réformée à Genève.","Le Prince russe Ivan IV Vassiliévitch dit Ivan le Terrible est sacré tsar de toutes les Russies à Moscou. Après la mort de sa femme Anastasia Romanovna, Ivan IV se lance dans un régime de terreur.","Bataille de Lépante, dans le golfe de Patras, (côte occidentale de la Grèce).  C'est une bataille navale de la quatrième guerre vénéto-ottomane, où s'affrontent la flotte ottomane de Sélim II et la flotte de la Sainte-Ligue.","Massacre de la Saint-Barthélemy. Une tuerie de masse ayant débuté le jour de la Saint-Barthélemy, et durant laquelle plusieurs milliers de protestants (huguenots) sont massacrés par des catholiques à Paris.","Introduction du calendrier grégorien dans la nuit de 15 octobre.","Naissance d'Armand Jean du Plessis de Richelieu, dit le cardinal de Richelieu. Ecclésiastique et homme d'État il fut ministre du roi Louis XIII. Il se distingue en entrant  au service de la régente Marie de Médicis.","Assassinat du roi Henri III à Saint-Cloud, sans héritier, c’est la fin de la dynastie des Valois.","Édit de Nantes signé par Henri IV qui tolère la religion protestante. Il met fin aux guerres de Religion en France en accordant aux protestants des droits civils et religieux.","Durant cette nuit, 2 000 soldats savoyards tentèrent de prendre Genève en utilisant des échelles pour franchir les murailles (d'où le nom d'« Escalade »). La population se mobilisa pour infliger une défaite à Charles-Emmanuel Ier.","Assassinat à Paris du roi de France Henri IV par Ravaillac. Début du règne de Louis XIII sous la régence de Marie de Médicis.","Guerre de Trente Ans qui oppose les catholiques et protestants du Saint Empire.","Date du baptême à Delft de Johannes Vermeer, peintre néerlandais du mouvement baroque. Célèbre pour ses scènes domestiques intimes et pour la tableau \"La Jeune Fille à la perle\".","Galilée est forcé par l'Église catholique de renier ses travaux  qui contredisait le géocentrisme biblique. Il aurait murmurée après avoir abjuré devant le tribunal de l'Inquisition :  «Et pourtant, elle tourne ! ».","Louis XIV (Le Roi-Soleil) devient roi à quatre ans.  8 ans sous la régence de sa mère Anne d'Autriche, son règne durera 72 ans.","La Fronde. Une période de troubles qui frappent la France alors en guerre contre l’Espagne, pendant la minorité de Louis XIV. Période de révoltes face à la montée de l’autorité monarchique.","Signature des traités de Wetsphalie concluant la querre de Trente Ans entre l'Europe de l'ouest et le Saint-Empire romain germanique.","Exécution de Charles Ier roi d’Angleterre. Il fut décapité à Whitehall, Londres, suite à la guerre civile anglaise et à son procès pour trahison.","Début du règne personnel de Louis XIV.","Le grand incendie de Londres. Il brûle 13 200 maisons, 87 églises paroissiales, la cathédrale Saint-Paul, et la majorité des bâtiments publics de la Cité.","L'Anglais Isaac Newton invente le télescope à deux miroirs qui permet de grossir 40 fois les astres observés.","Installation de la cour à Versailles. La France est la première puissance d’Europe.","Denis Papin  donne la première description d’une machine à vapeur qui fonctionne par le jeu alternatif d’un piston dans un cylindre.","Mort de Louis XIV.","Fondation de \"La Grande Loge d'Angleterre\". Première obédience maçonnique créée dans le monde à partir de la fusion de quatre loges londoniennes. ","Décapitation du major Davel.  Il est nommé par les Bernois à la tête du commandement des milices vaudoises de Lavaux. Son plan visant à l'autonomie du Pays de Vaud lui vaudra arrestation puis exécution.","Naissance d'Adam Smith, économiste écossais, célèbre pour \"la main invisible\". Une expression  qui désigne la théorie selon laquelle l'ensemble des actions individuelles  contribuent à la richesse et au bien commun.","Naissance d'Antoine Lavoisier, chimiste français. Avec Berthollet il  conçoit une nomenclature chimique  qui sert de base au système moderne. On lui doit la maxime « Rien ne se perd, rien ne se crée, tout se transforme ».","Parution du volume I de \"L’Encyclopédie ou Dictionnaire raisonné des sciences, des arts et des métiers\" . Édité sous la direction de Denis Diderot et, partiellement, de Jean Le Rond d'Alembert et Louis de Jaucourt.","Début de la \"Guerre de 7 ans\" opposant la France à l'Angleterre. John Smeaton perfectionne la chaux hydraulique  un mortier capable de durcir sous l'eau en mélangeant de la chaux et l'argile, ouvrant la voie vers le ciment.","Jean-Jacques Rousseau fait paraître son roman épistolaire \"Julie ou la Nouvelle Héloïse\" qui sera l'un des plus grands succès de librairie de son siècle, révélant ainsi la place faite à la sensibilité au temps des Lumières.","En cette fin d'année, Wolfgang Amadeus Mozart compose sa première œuvre : le menuet en sol majeur, catalogué sous le numéro KV 1. Il a 5 ans.","Déclaration d'indépendance des États-Unis. Treize Colonies  de l'Empire britannique en Amérique ont déclaré leur souveraineté vis-à-vis de la Grande-Bretagne  pour former les « États-Unis d'Amérique ». ","James Watt fait breveter une locomotive à vapeur.  Il introduit une unité appelée le cheval-vapeur pour comparer la puissance fournie par les machines à vapeur.","Acceptation  de la Constitution des États-Unis. Selon ses propres termes, c'est la loi suprême des États-Unis d'Amérique.","Révolution française. Prise de la Bastille le 14 juillet.","La Déclaration des droits de l'homme et du citoyen est acceptée par l’Assemblée constituante comme préambule de la Constitution française.","La France déclare la guerre à l'Autriche et envahit la Suisse. La Diète fédérale, de son côté, proclame le 13 mai à Frauenfeld sa neutralité dans le conflit.","L'indépendance vaudoise. Le Pays de Vaud met fin à la domination bernoise. Étape cruciale de l'histoire vaudoise. L'indépendance fut proclamée  sur la place de la Palud, suite à un soutien de la France révolutionnaire. ","la République française sous le Directoire impose sa domination en Europe, marquant la création de la République helvétique (12 avril) sur le modèle unitaire français, abolissant l'ancienne Confédération suisse.","Bonaparte devient Premier Consul et établi de régime du Consulat. En tant que Premier Consul, Bonaparte détient les pleins pouvoirs exécutifs, diplomatiques et militaires, tout en contrôlant le pouvoir législatif.","Invention de la pile électrique par le physicien italien Alessandro Volta","Mise au point par Joseph Marie Jacquard avec l'aide du menuisier Jean-Antoine Breton du premier métier à tisser, système mécanique programmable avec cartes perforées.","Entrée dans la Confédération Suisse des cantons de St.-Gall, des Grisons, d'Argovie,  de Thurgovie, du Tessin et de Vaud."," L' \"Acte de Médiation\", entre la République helvétique au bord de l'effondrement militaire et l'armée des fédéralistes insurgés (partisans de la souveraineté des cantons), est signé par Bonaparte à Paris.","Haïti chasse les Français. Sur l'île de Saint-Domingue, une bataille met fin à la tentative de Napoléon de restaurer la souveraineté de la France. L'armée française capitulent. Haïti deviendra le premier État noir indépendant.","Le sacre de Napoléon Ier, le 2 décembre, est la cérémonie d'intronisation et de couronnement qui suivit la proclamation de Napoléon Bonaparte comme empereur des Français. C'est le début de l’Empire.","Bataille de Trafalgar opposant les flottes françaises de Napoléon et espagnoles à la flotte britannique commandée par Nelson, au large du Cap de Trafalgar (E). La victoire des Britanniques est totale.","Naissance du général Giuseppe Garibaldi, considéré, avec Cavour, Victor-Emmanuel II et Mazzini, comme l’un des « pères de la patrie » italienne.","Entrée dans la Confédération Suisse des cantons du Valais de Genève et de Neuchâtel.","Acte final du Congrès de Vienne qui rétablit l’ordre ancien des princes sur l’Europe. Les pays vainqueurs de Napoléon Ier ainsi que les autres États européens se réunissent pour rédiger et signer les conditions de la paix.","Bataille de Waterloo en Belgique. Elle a opposé l'armée de Napoléon Ier, à l'armée des Alliés, dirigée par le duc de Wellington. Elle s'est achevée par la défaite décisive de l'armée française.","Conquête de l’Algérie par la France.","Pierre-Joseph Proudhon, journaliste, économiste, philosophe et homme politique français, écrit dans son premier ouvrage \"Qu'est-ce que la propriété ?\" la formule qui le rendit célèbre : « La propriété, c'est le vol ! ».","Guerre du Sonderbund. Guerre civile sécessionniste.  Victoire des troupes fédérales, commandées par le Général Dufour, sur celles des 7 cantons catholiques (Ligue  du Sonderbund).","La Suisse moderne est née avec l'entrée en vigueur de la Constitution fédérale.","Réalisation du premier moteur à combustion à deux temps par Étienne Lenoir.","Au début de cette année, de jeunes peintres se regroupent pour créer une nouvelle peinture. Ils se détachent des règles trop strictes de l'Académie. L'impressionniste est né avec Monet, Renoir, Cézanne, Degas entre autres.","Fondation à Genève par Henry Dunant du «Comité International de secours aux militaires blessés en campagne », désigné trois années plus tard, par le nom de « Comité international de la Croix-Rouge »","Le Phylloxéra. Ce puceron, de moins de 0,50 mm, originaire des États-Unis, a ravagé pendant des années des millions d’hectares de vignobles, bouleversant la culture traditionnelle de la Vigne européenne.","Naissance le 31 mars à Eisenach dans le duché de Saxe-Eisenach de Jean-Sébastien Bach, compositeur et musicien allemand. Mort à Leipzig à l'âge de 65 ans.","Inauguration du canal de Suez.","Le droit de référendum. Révision de la Constitution et introduction du droit de référendum.","Invention du téléphone par Alexander Graham Bell. Dépôt du brevet pour la transmission de la voix humaine le 14 février.","Invention du phonographe par Thomas Edison","Thomas Edison dépose ce jour un brevet pour une ampoule électrique en utilisant un filament de carbone dans une ampoule sous vide.","Pasteur découvre le vaccin contre la rage.","Affaire Dreyfus.  Une affaire d'État devenue un conflit social et politique majeur  en France autour de l'accusation de trahison faite au capitaine Alfred Dreyfus, juif d'origine alsacienne, qui sera finalement innocenté.","Rachat des Chemins de fer suisses par la Confédération menant à la création des Chemins de fer fédéraux suisses (CFF)","Premier vol d'un avion motorisé réalisé par les frères Wright","Albert Einstein publie la célèbre formule de la relativité :  E = mc2 soulevant ainsi de nouveaux horizons à la physique.","Création de la Banque nationale suisse (BNS).","Naufrage du Titanic qui devait relier Southampton à New York et qui a  heurté un iceberg. Environ 1500 personnes périssent.","L’assassinat de François-Ferdinand, l’archiduc d’Autriche et prince héritier de l’empire austro-hongrois. ","L’Allemagne déclare la guerre à la Russie. Le général Paul von HINDENBURG est à la tête de l'armée.","L’Allemagne déclare la guerre à la France et envahit la Belgique et le Luxembourg.","Verdun. Une bataille qui s'est déroulée en Lorraine en  opposant les armées française et allemande. Elle a fait plus de 305 000 tués et 400 000 blessés. Victoire défensive française et échec de l’offensive allemande.","Révolution russe  ayant conduit au renversement spontané du régime tsariste de Russie.","Armistice. Victoire des Alliés. Elle marque la fin des combats de la Première Guerre mondiale sur le front occidental. Ce document n'est pas un traité de paix ; le traité de paix, tel que le traité de Versailles, est signé plus tard. ","Fondation de l’URSS (Union des Républiques socialistes soviétiques)  ratifiée par le Congrès des soviets de Russie, de Biélorussie, d'Ukraine et de Transcaucasie. État marxiste-léniniste, sous la direction du Parti communiste.","Staline au pouvoir en U.R.S.S.","Krach de Wall Street (jeudi noir). La crise économique mondiale qui suit cette crise boursière provoque un chômage massif.","Adolf Hitler est nommé chancelier d'Allemagne par le président Paul von Hindenburg après avoir remporté les élections.","Appel du Général de Gaulle à Londres le 18 juin  pour la résistance.","Débarquement de Normandie, nom de code opération Neptune. C'est une vaste opération militaire amphibie et aéroportée alliée de la Seconde Guerre mondiale lancée dans la nuit du 5 au 6 juin.","Capitulation de l'Allemagne en mai.","La France renonce à l’Indochine.","Signature du traité de Rome instituant la Communauté économique européenne entre six pays : Allemagne de l'Ouest, Belgique, France, Italie, Luxembourg et Pays-Bas.","Jack Kilby crée le premier circuit intégré.","Theodore H. Maiman, ingénieur californien, reprit les études d’Einstein et actionna le premier laser dans les laboratoires Hughes Research à Malibu.","Assassinat de John F. Kennedy, président des États-Unis à Dallas. En tournée électorale, le cortège traverse à vitesse réduite le centre ville lorsque la voiture présidentielle, décapotée et touchées par des tirs.","Premiers pas de l'homme sur la lune, le 20 juillet.","Les femmes suisses obtiennent le droit de vote au niveau fédéral.","Année du décès de Chang Kaï-chek au pouvoir pendant 47 ans à Taïwan (Formose). Son ennemi de toujours Mao Zedong décède l'année suivante à Pékin après avoir été 27 ans à la tête de la Chine.","Création du canton du Jura, officiellement la République et Canton du Jura. Composé de trois districts avec comme chef-lieu Delémont il est le plus récent canton de Suisse.","Chute du mur de Berlin le 9 novembre.","Au CERN, Sir Timothy John Berners-Lee donne naissance au «world-wide web» le 6 août.","Dislocation de l'URSS. Le Soviet suprême  et le Soviet des républiques  reconnaissent  les indépendances des républiques de l'Union. La veille Mikhaïl Gorbatchev avait démissionné en transférant ses pouvoirs à  Boris Eltsine.","Swissair n'est plus en mesure de payer ses factures, les vols sont suspendus et l'ensemble de la flotte reste au sol. 39 000 passagers sont bloqués. Cet épisode est connu sous le nom de « grounding »,","La Suisse devient le 190e état membre de l'Organisation des Nations unies (Initiative populaire pour l'adhésion à l'ONU)."]
[null,"il y a 400 000 ans",1,"L'homme de Néandertal maîtrisait parfaitement le feu, l'utilisant pour se chauffer, s'éclairer, cuisiner et fabriquer des outils.  Il savait produire le feu par percussion (silex et pyrite)."]
[null,"Vers 19000 avant J.-C.",1,"Des Magdaléniens dessinent des figures d'animaux dans leurs grottes, comme celles retrouvées en 1940 à Lascaux en Dordogne."]
[null,"Vers 10500 avant J.-C.",6,"Au Japon, première et plus ancienne époque de fabrication de la céramique  connue dans le monde"]
[null,"Vers 8000 avant J.-C.",1,"Débute le néolithique, les hommes cultivent des plantes et domestiquent des animaux "]
[null,"Vers 5000 avant J.-C.",1,"Début de la culture du maïs dans la vallée de Tehuacán (Mexique actuel)."]
[null,"Vers 3500 avant J.-C.",6,"La roue de transport  est attribuée à Sumer en Basse Mésopotamie."]
[null,"Vers 3000 avant J.-C.",6,"Les hommes inventent l’écriture, c’est la fin de la période néolithique."]
[null,"Vers 2800 avant J.-C.",1,"La métallurgie du bronze (alliage de cuivre et d'étain, plus dur que le cuivre seul, ce qui permet de fabriquer des outils plus résistants) parvient  en Grèce et en Crète.  800 ans  plus tard en Europe de l'Ouest et en Chine.",null,null,null,null,null,null,null,null,null,null,null,null,null,null,null,null,null,null,null,null,null,null,null,null,null,null,null,null,null,null,null,null,null,null,null,null,null,null,null,null,null,null,null,null,null,null,null,null,null,null,null,null,null,null,null,null,null,null,null,null,null,null,null,null,null,null,null,null,null,null,null,null,null,null,null,null,null,null,null,null,null,null,null,null,null,null,null,null,null,null,null,null,null,null,null,null,null,null,null,null,null,null,null,null,null,null,null,null,null,null,null," "]
[null,"vers 2589-2566 av. J.-C.",2,"Construction de la pyramide de Khéops pour le complexe de Gizeh. Elle est commandée par le pharaon Khéops durant l'Ancien Empire."]
[null,"Vers 2000 avant J.-C.",2,"Première utilisation du zéro pas les babyloniens. Les Arabes l'intégreront à leur système de numération au cours du Xe siècle."]
[null,"Vers 1590 avant J.-C.",2,"Les pharaons momifiés sont ensevelis dans la Vallée des Rois située sur la rive gauche du Nil face à Thèbes."]
[null,"1560 avant J.-C.",2,"Naissance de Moïse. La tradition juive place cette année en utilisant un schéma de 40 ans pour sa jeunesse, son séjour dans le désert, et l'errance dans le désert."]
[null,"Vers 1300 avant J.-C.",2,"Arrivée du fer en Grèce. Le monde grec entre dans le premier âge du fer."]
[null,"Vers 1200 avant J.-C.",2,"Les Hébreux s’installent dans le pays de Canaan, entre le fleuve Jourdain et la mer Méditerranée, après des années d’ exode. "]
[null,"Vers 780 avant J.-C.",6,"L’Odyssée est une épopée grecque attribuée à Homère.  Elle est considérée, avec l’Iliade, comme l'un des  « poèmes fondateurs » de la culture antique et comme l’un des plus grands chefs-d’œuvre de la littérature mondiale."]
[null,"776 avant J.-C.",2,"Premiers Jeux Olympiques à Olympie."]
[null,"753 avant J.-C.",2,"Fondation de Rome."]
[null,"Vers 650 avant J.-C..",6,"Apparition des premières pièces de monnaie en Lydie (région occidentale de l'Anatolie). Le roi Crésus y établit un système monétaire avec des pièces faites d'électrum, un alliage d'or et d'argent."]
[null,"vers 623 av. J.-C. ",6,"Naissance du Bouddha, Siddhartha Gautama. Fils du roi Shuddhodana et de la reine Maya (Népal actuel). Il choisit la voie de l'éveil après avoir découvert la souffrance humaine."]
[null,"586 avant J.-C.",2,"Le premier temple de Jérusalem (ou Temple de Saloman) est entièrement détruit par Nabuchodonosor II, roi de Babylone. C’est la fin du royaume de Juda (un royaume d’Israël)."]
[null,"490 avant J.-C.",2,"A Marathon, 9 000 hoplites athéniens et leurs 1 000 alliés platéens infligent une cuisante défaite aux 40 000 soldats de l’Empire perse."]
[null,"356 avant J.-C. (juillet)",2,"Naissance  d'Alexandre le Grand. Roi de Macédoine, il devient l'un des plus grands conquérants de l'histoire en prenant possession de l'immense Empire perse et en s'avançant jusqu'aux rives de l'Indus.      "]
[null,"348 avant J.-C.",2,"Le Parthénon construit sur l'Acropole d'Athènes est consacré à la déesse Athéna Parthénos en cette année."]
[null,"Vers 300 avant J.-C.",6,"Euclide écrit  un traité de mathématiques présentant de manière systématique un large ensemble de théorèmes accompagnés de leurs démonstrations. Il porte sur la géométrie et l'arithmétique."]
[null,"Vers 287 avant J.-C.",6,"Archimède nait à Syracuse. Grand scientifique connu pour son principe selon lequel  « Tout corps plongé dans un fluide subit une force verticale, dirigée de bas en haut, égale  au poids du volume de fluide déplacé\"."]
[null,"Vers 280 avant J.-C.",2,"Construction du Phare d'Alexandrie"]
[null,"247 avant J.-C.",2,"Naissance à Carthage de Hannibal, considéré comme l'un des plus grands tacticiens militaires de l'Histoire. Il a fait trembler les romains en franchissant les Alpes avec ses éléphants."]
[null,"168 avant J.-C.",2,"Début de la conquête romaine."]
[null,"52 avant J.-C.",2,"Guerre des Gaules et victoire romaine de César à Alésia."]
[null,"entre 51 et 30 av. J.-C. ",2,"Règne de Cléopâtre VII en Égypte. Cléopâtre a la réputation d'avoir usé de son sens de la politique et de son charme irrésistible pour asseoir son pouvoir."]
[null,"15 avant J.-C.",2,"Lousonna, vicus gallo-romain est érigée au bord du Léman dans l'actuel quartier de Vidy au bord du Léman."]
[null,37,2,"Naissance de Lucius Domitius Ahenobarbus, qui deviendra empereur romain à l'âge de 17 ans sous le nom de Néron."]
[null,64,2,"Incendie de Rome, début des persécutions contre les chrétiens."]
[null,79,2,"Éruption du Vésuve qui a enseveli sous les éjectas volcaniques Pompéi et Herculanum."]
[null,105,6,"L’invention du papier est attribuée à Ts’ai Lun, un dignitaire de la cour impériale chinoise."]
[null,313,2,"Édit de Constantin (ou Édit de Milan) accorde la liberté de culte aux chrétiens et ordonne que leur soient restitués  biens et bâtiments  confisqués durant la Grande persécution."]
[null,395,2,"Partage de l’Empire, Empire romain d’occident et Empire romain d’Orient."]
[null,410,2,"Prise de Rome par les Goths."]
[null,443,2,"Les Burgondes, un peuple germanique, sont installés par le général romain Aetius dans la région du lac Léman pour défendre l'Empire romain contre les Alamans. Ils adoptent rapidement la langue et la culture gallo-romaines. "]
[null,476,2,"Chute de l’Empire romain d’occident et fin de l’Antiquité. L’Empire romain d’orient subsiste sous le nom d’Empire Byzantin avec pour capitale : Constantinople."]
[null,481,3,"Avènement de Clovis Iᵉʳ roi des Francs saliens, puis roi de tous les Francs. Premier roi de France, il est à l'origine de la dynastie des Mérovingiens."]
[null,"Vers 610",6,"L'islam est né  dans la péninsule arabique. Mahomet, alors marchand à La Mecque, reçoit ses premières révélations de l'archange Gabriel. Il commence alors à prêcher le monothéisme (crois en un Dieu unique, Allah)."]
[null,624,5,"Victoire de Badr sur les Mecquois. Allah ordonne le changement de Qibla ( la prière est dirigée vers La Mecque et non plus vers Jérusalem ) et fixation du jeûne du mois de Ramadhan."]
[null,"Vers 629- 630",5,"Expulsion des Juifs de Jérusalem par Héraclius. Cette déportation donne lieu à des violences anti-juives à travers l’Empire romain d’orient et le patriarche Cyrus d’Alexandrie"]
[null,"632 (4 juin)",5,"Mort à Médine de Mahomet. Chef religieux, politique et militaire arabe issu de la tribu de Quraych. Fondateur de l'islam, il en est considéré comme le prophète majeur."]
[null,632,3,"A la mort de son frère, Dagobert  devient cette année là l’unique roi des Francs et seul maître d’un royaume mérovingien qui s’étend des Pyrénées au Rhin, de la Bretagne à l’Elbe."]
[null,751,3,"Pépin le Bref devient roi des Francs : la dynastie carolingienne est fondée."]
[null,"800 (25 décembre)",3,"Sacre de l’empereur Charlemagne et Aix-la-Chapelle devient capitale du royaume."]
[null,828,5,"Début de la construction à Venise de la Basilique cathédrale Saint-Marc sur l'emplacement de la chapelle privée du palais des Doges."]
[null,"fin 885 - 886",3,"Pillage de Paris par les Vikings."]
[null,"dès 897",5,"La sécheresse importante en Amérique centrale qui toucha le Mexique aurait pu contribuer à la chute des Mayas. "]
[null,962,5,"Couronnement d'Otton Ier. Le Saint-Empire romain germanique est constitué. IL s'étend de la mer du Nord aux États pontificaux, à l'est quatre fleuves délimitant la Francie: l'Escaut, la Meuse, la Saône et le Rhône."]
[null,"987 (3 juillet)",3,"Le dernier roi Carolingien Louis V meurt sans descendance. Hugues Capet lui succède et fonde la dynastie des Capétiens. Date probable du couronnement."]
[null,"Vers 1001",5,"Découverte possible de l’Amérique par Leif Erikson, un proche parent d’Erik le Rouge venu de Norvège pour rejoindre son père au Groenland et dérouté par les vents."]
[null,1054,5,"Schisme d’Orient entre l’église catholique d’occident et l’église orthodoxe d’Orient. "]
[null,"1095 (19 juin)",5,"Au concil de Clermont, appel à la croisade par le pape Urbain II."]
[null,1099,5,"Siège et prise de Jérusalem par les croisés."]
[null,"1129 (13 janvier)",5,"Création de l'Ordre du Temple à l'occasion du concile de Troyes à partir d'une milice de Français chrétiens appelée la Milice des Pauvres Chevaliers du Christ et du Temple de Salomon. Les membres sont appelés les Templiers."]
[null,1173,5,"Début de la construction de la Tour de Pise (campanile de la cathédrale Notre-Dame de l’Assomption de Pise, en Toscane."]
[null,1198,6,"Leonardo Fibonacci, mathématicien italien, introduit les chiffres indo-arabes (de zéro à 9) à Pise en remplacement des chiffres romains et révolutionne ainsi toutes les mathématiques de l'Occident."]
[null,"1204 (12 -14 avril)",5,"Les croisés s’emparent de Constantinople en 3 jours et pillent sauvagement la ville."]
[null,1206,5,"Gengis Khan unifie la Mongolie. Début des conquêtes mongoles en Asie centrale."]
[null,"1215 - 1250",5,"Frédéric II (Friedrich II von Hohenstaufen) est Empereur du Saint-Empire romain germanique."]
[null,"dès 1226-1228",6,"Premières mentions de \"Robin Hood\" dans des registres judiciaires. Par la suite Robin des Bois est un personnage du folklore médiéval anglais, célèbre pour sa philosophie de « voler aux riches pour donner aux pauvres »."]
[null,1232,6,"Les Chinois utilisèrent pour la première fois des roquettes au combat. Cet événement illustra l'utilisation militaire de la poudre à canon. Dès lors, l'usage de la poudre à canon se répandit rapidement à travers le monde."]
[null,1273,5,"Fondation de la dynastie des Habsbourg avec Rodolphe Ier. Cette dynastie va exister jusqu'en 1918."]
[null,"1275 (20 ocobre)",4,"Consécration de la cathédrale de Lausanne, sous le vocable de Notre-Dame, en présence du pape Grégoire X."]
[null,1291,4,"Signature début août du Pacte fédéral par les hommes libres d'Uri, Schwytz et Nidwald."]
[null,"1303 (septembre)",3,"L'attentat d'Anagni est l'événement le plus marquant de la lutte opposant le roi de France Philippe le Bel au pape Boniface VIII."]
[null,1307,4,"Le Serment du Grütli est un mythe fondateur de la Suisse de caractère légendaire. Trois Confédérés Arnold de Melchtal, Walter Fürst et Werner Stauffacher scellent le pacte d'alliance sur la prairie du Grütli. "]
[null,1309,5,"Le pape Clément V décide de quitter Rome dont il redoute des tensions grandissantes l'opposent à l'Empereur. Il s'installe alors en Avignon."]
[null,"1315 (15 novembre)",4,"Bataille de Morgarten au sud de Zurich. Là, quelque 1 500 confédérés suisses repoussèrent les 4 000 à 8 000 soldats du duc Léopold Ier d'Autriche, seigneur de Habsbourg."]
[null,1336,6,"Première horloge à sonner les heures. Elle sera installée sur un clocher de la ville de Milan."]
[null,"1337-1453",5,"Guerre de Cent Ans. Conflit entrecoupé de trêves plus ou moins longues, opposant la dynastie des Plantagenêts à celle des Valois, à travers elles, le royaume d'Angleterre et celui de France."]
[null,"1347-1350",5,"Pestes Noires , aussi appelée grande peste ou mort noire, est une pandémie de peste  bubonique. Elle touche l'Europe à travers les invasions mongoles faisant jusqu'à 200 millions de victimes à travers le monde. "]
[null,"1386 (juillet)",4,"Bataille de Sempach, décès de Léopold III de Habsbourg stoppant les prétentions des Habsbourg au sud du Rhin."]
[null,1402,5,"Le conquérant mongol Tamerlan bat le sultan ottoman à la bataille d'Angor après avoir envahi la Syrie et ravagé Alep, Damas et Bagdad."]
[null,"Vers 1411",6,"L'arquebuse (canon à main) apparaît dans les armées. Il s'agit d'une arme à feu individuelle de portée  limitée (moins de 50 mètres), assez lourde et encombrante, mais dont on pouvait épauler."]
[null,"1429-1431",3,"Chevauchée de Jeanne d’Arc. Elle  convainc le dauphin d’aller se faire sacrer à Reims. Cette chevauchée est couronnée de succès et donne à Charles VII le trône dont il avait été évincé par le traité de Troyes."]
[null,1450,6,"Invention de l'imprimerie par Johannes Gutenberg"]
[null,"1453 (6 avril - 29 mai)",5,"Les troupes ottomanes conduites par Mehmed II s’emparent de Constantinople. C'est la fin de l’Empire byzantin."]
[null,"1453 (17 juillet)",3,"Charles VII, roi de France remporte la bataille de Castillon. C’est la fin de la Guerre de Cent Ans."]
[null,1455,6,"La Bible est le premier livre imprimé par Gutenberg."]
[null,"1473 (19 février)",6,"Naissance de Nicolas Copernic, astronome polonais, chanoine, médecin et mathématicien. Célèbre pour avoir développé la théorie de l'héliocentrisme, selon laquelle la Terre tourne autour du Soleil."]
[null,"1476 (22 juin)",4,"Bataille de Morat. Une victoire remportée en une journée par les Confédérés suisses et leurs alliés alsaciens sur l'armée bourguignonne du duc Charles le Téméraire."]
[null,1477,6,"Début de la construction de la 'Chapelle Sixtine' une des salles des palais pontificaux du Vatican. "]
[null,1485,6,"Sandro Botticelli peint \"La Naissance de Vénus\" exposée actuellement à la Galerie des Offices à Florence."]
[null,1492,5,"Découverte de l’Amérique par Christophe Colomb."]
[null,"1494 ( 6 novembre)",5,"Naissance de Soliman Ier dit Soliman le Magnifique à Trébizonde dans l'actuelle Turquie. Il sera l'un des monarques les plus éminents de son siècle et présida à l'apogée de la puissance de l'Empire ottoman."]
[null,1498,5,"Vasco de Gama contourne l’Afrique pour atteindre les Indes."]
[null,"1499 (22 septembre)",4,"Signature du \"Traité de Bâle\" qui met fin à la guerre de Souabe.Il est fondamental car il marque la reconnaissance de facto de l'indépendance de la Confédération suisse face au Saint-Empire romain germanique."]
[null,"Vers 1500",6,"Léonard de Vinci invente entre autres le parachute. "]
[null,1515,4,"La Bataille de Marignan opposa François Ier aux mercenaires suisses qui défendaient le duché de Milan."]
[null,"1516 (29 novembre)",4,"François Ier, et les XIII Cantons suisses concluent une Paix perpétuelle à Fribourg. En dépit de la défaite de Marignan, les Confédérés acquièrent de nouveaux territoires et renforcent leur réputation militaire."]
[null,1519,5,"Départ de Magellan pour effectuer le tour du monde en trois ans."]
[null,"1520-1550",3,"Les rois de France se font bâtir des châteaux en Île-de-France et Val de Loire"]
[null,1520,4,"Apparition de la réforme protestante (apparue 3 ans plus tôt dans le Saint-Empire avec Martin Luther) dans la confédération des XIII cantons."]
[null,"1529 (26 juin)",4,"Première guerre de Kappel. Les catholiques et les protestants déposèrent au dernier moment les armes et se réconcilièrent autour d’une soupe."]
[null,"1533 (11 juillet)",5,"Le roi d'Angleterre Henri VIII est excommunié par le Pape pour avoir divorcé de Catherine d'Aragon sans l'accord du Vatican. Cette rupture va mener à la création de l'Eglise Anglicane dont il sera à la tête."]
[null,"1536 (mars)",4,"Les Bernois, conquièrent le Pays de Vaud et, le 29, occupent le château de Chillon qui conserve son rôle de forteresse, d’arsenal et de prison."]
[null,"1539 (août)",3,"Ordonnance de Villers-Cotterêts. François Ier impose l'usage du français dans les actes politiques et juridiques."]
[null,1540,4,"Calvin fonde l’Église réformée à Genève."]
[null,"1547 (16 janvier)",5,"Le Prince russe Ivan IV Vassiliévitch dit Ivan le Terrible est sacré tsar de toutes les Russies à Moscou. Après la mort de sa femme Anastasia Romanovna, Ivan IV se lance dans un régime de terreur."]
[null,"1571 (7 octobre)",5,"Bataille de Lépante, dans le golfe de Patras, (côte occidentale de la Grèce).  C'est une bataille navale de la quatrième guerre vénéto-ottomane, où s'affrontent la flotte ottomane de Sélim II et la flotte de la Sainte-Ligue."]
[null,"1572 ( 23 - 24 août)",3,"Massacre de la Saint-Barthélemy. Une tuerie de masse ayant débuté le jour de la Saint-Barthélemy, et durant laquelle plusieurs milliers de protestants (huguenots) sont massacrés par des catholiques à Paris."]
[null,1582,5,"Introduction du calendrier grégorien dans la nuit de 15 octobre."]
[null,"1585 (9 septembre)",3,"Naissance d'Armand Jean du Plessis de Richelieu, dit le cardinal de Richelieu. Ecclésiastique et homme d'État il fut ministre du roi Louis XIII. Il se distingue en entrant  au service de la régente Marie de Médicis."]
[null,"1589 ( 2 août)",3,"Assassinat du roi Henri III à Saint-Cloud, sans héritier, c’est la fin de la dynastie des Valois."]
[null,1598,3,"Édit de Nantes signé par Henri IV qui tolère la religion protestante. Il met fin aux guerres de Religion en France en accordant aux protestants des droits civils et religieux."]
[null,"1602 (11 - 12 décembre) ",4,"Durant cette nuit, 2 000 soldats savoyards tentèrent de prendre Genève en utilisant des échelles pour franchir les murailles (d'où le nom d'« Escalade »). La population se mobilisa pour infliger une défaite à Charles-Emmanuel Ier."]
[null,"1610 (14 mai)",3,"Assassinat à Paris du roi de France Henri IV par Ravaillac. Début du règne de Louis XIII sous la régence de Marie de Médicis."]
[null,"1618-1648",3,"Guerre de Trente Ans qui oppose les catholiques et protestants du Saint Empire."]
[null,"1632 (31 octobre)",6,"Date du baptême à Delft de Johannes Vermeer, peintre néerlandais du mouvement baroque. Célèbre pour ses scènes domestiques intimes et pour la tableau \"La Jeune Fille à la perle\"."]
[null,1633,6,"Galilée est forcé par l'Église catholique de renier ses travaux  qui contredisait le géocentrisme biblique. Il aurait murmurée après avoir abjuré devant le tribunal de l'Inquisition :  «Et pourtant, elle tourne ! »."]
[null,1643,3,"Louis XIV (Le Roi-Soleil) devient roi à quatre ans.  8 ans sous la régence de sa mère Anne d'Autriche, son règne durera 72 ans."]
[null,"1648-1653",3,"La Fronde. Une période de troubles qui frappent la France alors en guerre contre l’Espagne, pendant la minorité de Louis XIV. Période de révoltes face à la montée de l’autorité monarchique."]
[null,"1648 (24 octobre)",5,"Signature des traités de Wetsphalie concluant la querre de Trente Ans entre l'Europe de l'ouest et le Saint-Empire romain germanique."]
[null,"1649 (30 janvier)",5,"Exécution de Charles Ier roi d’Angleterre. Il fut décapité à Whitehall, Londres, suite à la guerre civile anglaise et à son procès pour trahison."]
[null,1661,3,"Début du règne personnel de Louis XIV."]
[null,1666,5,"Le grand incendie de Londres. Il brûle 13 200 maisons, 87 églises paroissiales, la cathédrale Saint-Paul, et la majorité des bâtiments publics de la Cité."]
[null,1671,6,"L'Anglais Isaac Newton invente le télescope à deux miroirs qui permet de grossir 40 fois les astres observés."]
[null,1682,3,"Installation de la cour à Versailles. La France est la première puissance d’Europe."]
[null,1687,6,"Denis Papin  donne la première description d’une machine à vapeur qui fonctionne par le jeu alternatif d’un piston dans un cylindre."]
[null,1715,3,"Mort de Louis XIV."]
[null,1717,5,"Fondation de \"La Grande Loge d'Angleterre\". Première obédience maçonnique créée dans le monde à partir de la fusion de quatre loges londoniennes. "]
[null,"1723 (24 avril)",4,"Décapitation du major Davel.  Il est nommé par les Bernois à la tête du commandement des milices vaudoises de Lavaux. Son plan visant à l'autonomie du Pays de Vaud lui vaudra arrestation puis exécution."]
[null,"1723 (5 juin)",6,"Naissance d'Adam Smith, économiste écossais, célèbre pour \"la main invisible\". Une expression  qui désigne la théorie selon laquelle l'ensemble des actions individuelles  contribuent à la richesse et au bien commun."]
[null,"1743 (26 août)",6,"Naissance d'Antoine Lavoisier, chimiste français. Avec Berthollet il  conçoit une nomenclature chimique  qui sert de base au système moderne. On lui doit la maxime « Rien ne se perd, rien ne se crée, tout se transforme »."]
[null,1751,6,"Parution du volume I de \"L’Encyclopédie ou Dictionnaire raisonné des sciences, des arts et des métiers\" . Édité sous la direction de Denis Diderot et, partiellement, de Jean Le Rond d'Alembert et Louis de Jaucourt."]
[null,1759,6,"Invention du ciment. John Smeaton produit un mortier aussi dur que de la pierre en mélangeant des chaux hydrauliques et des cendres volcaniques."]
[null,"1761 (février) ",6,"Jean-Jacques Rousseau fait paraître son roman épistolaire \"Julie ou la Nouvelle Héloïse\" qui sera l'un des plus grands succès de librairie de son siècle, révélant ainsi la place faite à la sensibilité au temps des Lumières."]
[null,1761,6,"En cette fin d'année, Wolfgang Amadeus Mozart compose sa première œuvre : le menuet en sol majeur, catalogué sous le numéro KV 1. Il a 5 ans."]
[null,"1776 (4 juillet)",5,"Déclaration d'indépendance des États-Unis. Treize Colonies  de l'Empire britannique en Amérique ont déclaré leur souveraineté vis-à-vis de la Grande-Bretagne  pour former les « États-Unis d'Amérique ». "]
[null,1784,6,"James Watt fait breveter une locomotive à vapeur.  Il introduit une unité appelée le cheval-vapeur pour comparer la puissance fournie par les machines à vapeur."]
[null,"1787 (17 septembre)",5,"Acceptation  de la Constitution des États-Unis. Selon ses propres termes, c'est la loi suprême des États-Unis d'Amérique."]
[null,1789,3,"Révolution française. Prise de la Bastille le 14 juillet."]
[null,"1789 (26 août)",3,"La Déclaration des droits de l'homme et du citoyen est acceptée par l’Assemblée constituante comme préambule de la Constitution française."]
[null,1792,4,"La France déclare la guerre à l'Autriche et envahit la Suisse. La Diète fédérale, de son côté, proclame le 13 mai à Frauenfeld sa neutralité dans le conflit."]
[null,"1798 (24 janvier)",4,"L'indépendance vaudoise. Le Pays de Vaud met fin à la domination bernoise. Étape cruciale de l'histoire vaudoise. L'indépendance fut proclamée  sur la place de la Palud, suite à un soutien de la France révolutionnaire. "]
[null,1798,4,"la République française sous le Directoire impose sa domination en Europe, marquant la création de la République helvétique (12 avril) sur le modèle unitaire français, abolissant l'ancienne Confédération suisse."]
[null,1799,3,"Bonaparte devient Premier Consul et établi de régime du Consulat. En tant que Premier Consul, Bonaparte détient les pleins pouvoirs exécutifs, diplomatiques et militaires, tout en contrôlant le pouvoir législatif."]
[null,1800,6,"Invention de la pile électrique par le physicien italien Alessandro Volta"]
[null,1801,6,"Mise au point par Joseph Marie Jacquard avec l'aide du menuisier Jean-Antoine Breton du premier métier à tisser, système mécanique programmable avec cartes perforées."]
[null,1803,4,"Entrée dans la Confédération Suisse des cantons de St.-Gall, des Grisons, d'Argovie,  de Thurgovie, du Tessin et de Vaud."]
[null,"1803 (19 février)",4," L' \"Acte de Médiation\", entre la République helvétique au bord de l'effondrement militaire et l'armée des fédéralistes insurgés (partisans de la souveraineté des cantons), est signé par Bonaparte à Paris."]
[null,"1803 (19 février) ",4,"L'« Acte de Médiation entre les partis qui divisent la Suisse » est signé par Bonaparte à Paris, attribuant une nouvelle constitution à la Suisse et à ses cantons. La Suisse est désormais organisée selon une confédération d'États. "]
[null,1804,3,"Sacre de Napoléon le 2 décembre et début de l’Empire."]
[null,"1805 (21 octobre)",5,"Bataille de Trafalgar opposant les flottes françaises de Napoléon et espagnoles à la flotte britannique commandée par Nelson, au large du Cap de Trafalgar (E). La victoire des Britanniques est totale."]
[null,"1807 (4 juillet)",5,"Naissance du général Giuseppe Garibaldi, considéré, avec Cavour, Victor-Emmanuel II et Mazzini, comme l’un des « pères de la patrie » italienne."]
[null,1815,4,"Entrée dans la Confédération Suisse des cantons du Valais de Genève et de Neuchâtel."]
[null,"1815 (9 juin)",5,"Acte final du Congrès de Vienne qui rétablit l’ordre ancien des princes sur l’Europe. Les pays vainqueurs de Napoléon Ier ainsi que les autres États européens se réunissent pour rédiger et signer les conditions de la paix."]
[null,"1815 (18 juin)",5,"Bataille de Waterloo en Belgique. Elle a opposé l'armée de Napoléon Ier, à l'armée des Alliés, dirigée par le duc de Wellington. Elle s'est achevée par la défaite décisive de l'armée française."]
[null,1830,3,"Conquête de l’Algérie par la France."]
[null,1840,6,"Pierre-Joseph Proudhon, journaliste, économiste, philosophe et homme politique français, écrit dans son premier ouvrage \"Qu'est-ce que la propriété ?\" la formule qui le rendit célèbre : « La propriété, c'est le vol ! »."]
[null,"1847 (novembre)",4,"Guerre du Sonderbund. Guerre civile sécessionniste.  Victoire des troupes fédérales, commandées par le Général Dufour, sur celles des 7 cantons catholiques (Ligue  du Sonderbund)."]
[null,"1848 (12 septembre)",4,"La Suisse moderne est née avec l'entrée en vigueur de la Constitution fédérale."]
[null,1859,6,"Réalisation du premier moteur à combustion à deux temps par Étienne Lenoir."]
[null,1860,6,"Au début de cette année, de jeunes peintres se regroupent pour créer une nouvelle peinture. Ils se détachent des règles trop strictes de l'Académie. L'impressionniste est né avec Monet, Renoir, Cézanne, Degas entre autres."]
[null,"1863 (17 février)",6,"Fondation à Genève par Henry Dunant du «Comité International de secours aux militaires blessés en campagne », désigné trois années plus tard, par le nom de « Comité international de la Croix-Rouge »"]
[null,"dès 1864",5,"Le Phylloxéra. Ce puceron, de moins de 0,50 mm, originaire des États-Unis, a ravagé pendant des années des millions d’hectares de vignobles, bouleversant la culture traditionnelle de la Vigne européenne."]
[null,1865,6,"Naissance le 31 mars à Eisenach dans le duché de Saxe-Eisenach de Jean-Sébastien Bach, compositeur et musicien allemand. Mort à Leipzig à l'âge de 65 ans."]
[null,1869,5,"Inauguration du canal de Suez."]
[null,1874,4,"Le droit de référendum. Révision de la Constitution et introduction du droit de référendum."]
[null,1876,6,"Invention du téléphone par Alexander Graham Bell. Dépôt du brevet pour la transmission de la voix humaine le 14 février."]
[null,1878,6,"Invention du phonographe par Thomas Edison"]
[null,"1879 (4 novembre)",6,"Thomas Edison dépose ce jour un brevet pour une ampoule électrique en utilisant un filament de carbone dans une ampoule sous vide."]
[null,"dès 1894",3,"Affaire Dreyfus.  Une affaire d'État devenue un conflit social et politique majeur  en France autour de l'accusation de trahison faite au capitaine Alfred Dreyfus, juif d'origine alsacienne, qui sera finalement innocenté."]
[null,1885,6,"Pasteur découvre le vaccin contre la rage."]
[null,1898,4,"Rachat des Chemins de fer suisses par la Confédération menant à la création des Chemins de fer fédéraux suisses (CFF)"]
[null,1903,6,"Premier vol d'un avion motorisé réalisé par les frères Wright"]
[null,1905,6,"Albert Einstein publie la célèbre formule de la relativité :  E = mc2 soulevant ainsi de nouveaux horizons à la physique."]
[null,1907,4,"Création de la Banque nationale suisse (BNS)."]
[null,"1912 (14 avri)",5,"Naufrage du Titanic qui devait relier Southampton à New York et qui a  heurté un iceberg. Environ 1500 personnes périssent."]
[null,"1914 (28 juin)",5,"L’assassinat de François-Ferdinand, l’archiduc d’Autriche et prince héritier de l’empire austro-hongrois. "]
[null,"1914 (1er août)",5,"L’Allemagne déclare la guerre à la Russie. Le général Paul von HINDENBURG est à la tête de l'armée."]
[null,"1914 (3 août)",5,"L’Allemagne déclare la guerre à la France et envahit la Belgique et le Luxembourg."]
[null,"1916 (21 fév.-18 déc.)",3,"Verdun. Une bataille qui s'est déroulée en Lorraine en  opposant les armées française et allemande. Elle a fait plus de 305 000 tués et 400 000 blessés. Victoire défensive française et échec de l’offensive allemande."]
[null,"1917 (février)",5,"Révolution russe  ayant conduit au renversement spontané du régime tsariste de Russie."]
[null,"1918 (11 novembre)",5,"Armistice. Victoire des Alliés. Elle marque la fin des combats de la Première Guerre mondiale sur le front occidental. Ce document n'est pas un traité de paix ; le traité de paix, tel que le traité de Versailles, est signé plus tard. "]
[null,"1922 (30 décembre)",5,"Fondation de l’URSS (Union des Républiques socialistes soviétiques)  ratifiée par le Congrès des soviets de Russie, de Biélorussie, d'Ukraine et de Transcaucasie. État marxiste-léniniste, sous la direction du Parti communiste."]
[null,"1924-1953",5,"Staline au pouvoir en U.R.S.S."]
[null,"1929 (24 -29 octobre)",5,"Krach de Wall Street (jeudi noir). La crise économique mondiale qui suit cette crise boursière provoque un chômage massif."]
[null,"1933 (30 janvier)",5,"Adolf Hitler est nommé chancelier d'Allemagne par le président Paul von Hindenburg après avoir remporté les élections."]
[null,1940,3,"Appel du Général de Gaulle à Londres le 18 juin  pour la résistance."]
[null,1944,5,"Débarquement de Normandie, nom de code opération Neptune. C'est une vaste opération militaire amphibie et aéroportée alliée de la Seconde Guerre mondiale lancée dans la nuit du 5 au 6 juin."]
[null,1945,5,"Capitulation de l'Allemagne en mai."]
[null,1954,3,"La France renonce à l’Indochine."]
[null,"1957 (25 mars)",5,"Signature du traité de Rome instituant la Communauté économique européenne entre six pays : Allemagne de l'Ouest, Belgique, France, Italie, Luxembourg et Pays-Bas."]
[null,1958,6,"Jack Kilby crée le premier circuit intégré."]
[null,"1960 (16 mai)",6,"Theodore H. Maiman, ingénieur californien, reprit les études d’Einstein et actionna le premier laser dans les laboratoires Hughes Research à Malibu."]
[null,"1963 (22 novembre)",5,"Assassinat de John F. Kennedy, président des États-Unis à Dallas. En tournée électorale, le cortège traverse à vitesse réduite le centre ville lorsque la voiture présidentielle, décapotée et touchées par des tirs."]
[null,1969,6,"Premiers pas de l'homme sur la lune, le 20 juillet."]
[null,1971,4,"Les femmes suisses obtiennent le droit de vote au niveau fédéral."]
[null,1975,5,"Année du décès de Chang Kaï-chek au pouvoir pendant 47 ans à Taïwan (Formose). Son ennemi de toujours Mao Zedong décède l'année suivante à Pékin après avoir été 27 ans à la tête de la Chine."]
[null,"1978 (24 septembre)",4,"Création du canton du Jura, officiellement la République et Canton du Jura. Composé de trois districts avec comme chef-lieu Delémont il est le plus récent canton de Suisse."]
[null,1989,5,"Chute du mur de Berlin le 9 novembre."]
[null,1991,6,"Au CERN, Sir Timothy John Berners-Lee donne naissance au «world-wide web» le 6 août."]
[null,"1991 (26 décembre)",5,"Dislocation de l'URSS. Le Soviet suprême  et le Soviet des républiques  reconnaissent  les indépendances des républiques de l'Union. La veille Mikhaïl Gorbatchev avait démissionné en transférant ses pouvoirs à  Boris Eltsine."]
[null,"2001 (2 octobre)",4,"Swissair n'est plus en mesure de payer ses factures, les vols sont suspendus et l'ensemble de la flotte reste au sol. 39 000 passagers sont bloqués. Cet épisode est connu sous le nom de « grounding »,"]
[null,"2002 (11 septembre)",4,"La Suisse devient le 190e état membre de l'Organisation des Nations unies (Initiative populaire pour l'adhésion à l'ONU)."]